Workbook

Sheet Directory
C3: Drone Sprayer Cost Estimation Decision Aid
B6: Directory | H6: User Notes | M6: Enabled
M7: Disabled
B8: • Standard Total Costs | H8: Value | J8: Requires user input for best cost estimation.
C10: • Equipment Ownership | H10: Value | J10: Indicates values are currently not included in cost estimation.
C11: • Certificates & Licenses
C12: • Utilities | J12: Indicates a drop down menu.
C13: • Software
C14: • Insurance
C15: • Maintenance & Repairs
B16: Chemical Name
B17: Corn Fungicide, 13.7 oz/acre | C17: • Chemical Component 1 | E17: Enabled
B18: Soybean Fungicide, 13.7 oz/acre | C18: • Chemical Component 2 | E18: Enabled
B19: Fungicide | C19: • Chemical Component 3 | E19: Disabled
B20: Pesticide | C20: • Chemical Component 4 | E20: Disabled
B21: Herbicide | C21: • Chemical Component 5 | E21: Disabled
B22: Fungicide | C22: • Chemical Component 6 | E22: Disabled
B23: Pesticide | C23: • Chemical Component 7 | E23: Disabled
B24: Herbicide | C24: • Chemical Component 8 | E24: Disabled
B25: Fungicide | C25: • Chemical Component 9 | E25: Disabled
B26: Pesticide | C26: • Chemical Component 10 | E26: Disabled
B29: Contact
B30: Josh Jackson
B31: Biosystems and Agricultural Engineering Department
B32: Email: joshjackson@uky.edu
B33: Phone: (859) 612-7758

Sheet Total Costs
B3: Parameters
B5: Number of Flights Conducted Yearly | D5: =SUM(Chemicals1:Chemicals10!G48) -> 5682
B6: Overall Acres Covered | D6: =SUM(Chemicals1:Chemicals10!G45) -> 5000
B7: Interest Rate | D7: 0.06
B8: Cost Viewpoint as Farmer or Service Provider | D8: Service Provider
B10: Expenditures | C10: Initial Cost | D10: Annual Cost | E10: Cost Per Flight
B12: Capital Expenditure
B13: Equipment Ownership | C13: ='Equipment Ownership'!$G$43 -> 128580 | D13: ='Equipment Ownership'!$H$43 -> 18741 | E13: ='Equipment Ownership'!$I$43 -> 3.298310454
B14: Interest (Opportunity Cost) | D14: ='Equipment Ownership'!J43 -> 1559.550052 | E14: ='Equipment Ownership'!K43 -> 0.274472026
B16: Operational Expenditure
B17: Certificates & Licenses | C17: ='Certificates & Licenses'!$D$29 -> 235 | D17: ='Certificates & Licenses'!$E$29 -> 147.5 | E17: ='Certificates & Licenses'!$F$29 -> 0.02595916931 | G17: Farmer
B18: Utilities | D18: =Utilities!K28 -> 2040.49143 | E18: =Utilities!L28 -> 0.359115 | G18: Service Provider
B19: Software | C19: =Software!$D$10 -> 0 | D19: =Software!E10 -> 0 | E19: =Software!F10 -> 0
B20: Insurance | C20: =Insurance!$D$24 -> 5000 | D20: =Insurance!$E$24 -> 5000 | E20: =Insurance!$F$24 -> 0.8799718409
B21: Maintenance & Repair | D21: ='Maintenance & Repairs'!$F$19 -> 2700 | E21: ='Maintenance & Repairs'!$G$19 -> 0.4751847941
B23: Total Cost | C23: =SUM(C13:C21) -> 133815 | D23: =SUM(D13:D21) -> 30188.54148 | E23: =SUM(E13:E21) -> 5.313013284
B25: =IF(D8=G18,"Income", "Labor Cost") -> Income
B26: =IF(D8=G18, "Total Revenue","Total Labor") -> Total Revenue | D26: =SUM(Chemicals1:Chemicals10!E89) -> 171359.65 | E26: =D26/D5 -> 30.15833333
B28: UAS Sprayer on a Per Acre Basis
B29: UAS Cost Per Acre | D29: =D23/D6 -> 6.037708296
B30: =IF(D8=G18, "UAS Revenue Per Acre","UAS Labor Cost Per Acre") -> UAS Revenue Per Acre | D30: =D26/D6 -> 34.27193
B31: =IF(D8=G18,"Net Per Acre","Total Cost Per Acre") -> Net Per Acre | D31: =IF(D8=G18,D30-D29,D30+D29) -> 28.2342217

Sheet Equipment Ownership
B3: Equipment Information | C3: Number of Units | D3: Purchase Price Per Unit | E3: Years of Economic Life | F3: Salvage Value | G3: Total Initial Cost | H3: Annual Depreciation | I3: Cost Per Flight | J3: Annual Interest | K3: Interest Cost Per Flight
B5: Required
B6: Sprayer UAS & Controller Station Package | C6: 3 | D6: 18000 | E6: 5 | F6: 2000 | G6: =D6*C6 -> 54000 | H6: =((D6-F6)/E6)*C6 -> 9600 | I6: =IFERROR((H6/'Total Costs'!$D$5),0) -> 1.689545935 | J6: =IF(C6=0,0,((D6+F6)/2)*'Total Costs'!$D$7) -> 600 | K6: =J6/'Total Costs'!$D$5 -> 0.1055966209
B7: Battery Charger | C7: 2 | D7: 1200 | E7: 5 | F7: 0 | G7: =D7*C7 -> 2400 | H7: 480 | I7: =H7/'Total Costs'!$D$5 -> 0.08447729673 | J7: =IF(C7=0,0,((D7+F7)/2)*'Total Costs'!$D$7) -> 36 | K7: =J7/'Total Costs'!$D$5 -> 0.006335797254
B8: Tablet or Mobile Device | C8: 1 | D8: 500 | E8: 5 | F8: 50 | G8: =D8*C8 -> 500 | H8: 90 | I8: =H8/'Total Costs'!$D$5 -> 0.01583949314 | J8: =IF(C8=0,0,((D8+F8)/2)*'Total Costs'!$D$7) -> 16.5 | K8: =J8/'Total Costs'!$D$5 -> 0.002903907075
B9: 64 GB Micro SD Card (x4) | C9: 0 | D9: 20 | E9: 5 | F9: 0 | G9: 0 | H9: 0 | I9: =H9/'Total Costs'!$D$5 -> 0 | J9: =IF(C9=0,0,((D9+F9)/2)*'Total Costs'!$D$7) -> 0 | K9: =J9/'Total Costs'!$D$5 -> 0
B10: Micro SD Card Reader | C10: 0 | D10: 15 | E10: 5 | F10: 0 | G10: 0 | H10: 0 | I10: =H10/'Total Costs'!$D$5 -> 0 | J10: =IF(C10=0,0,((D10+F10)/2)*'Total Costs'!$D$7) -> 0 | K10: =J10/'Total Costs'!$D$5 -> 0
B11: Spare Batteries | C11: 10 | D11: 1000 | E11: 5 | F11: 0 | G11: =D11*C11 -> 10000 | H11: 2000 | I11: =H11/'Total Costs'!$D$5 -> 0.3519887364 | J11: =IF(C11=0,0,((D11+F11)/2)*'Total Costs'!$D$7) -> 30 | K11: =J11/'Total Costs'!$D$5 -> 0.005279831045
B12: Landing Pad | C12: 0 | D12: 20 | E12: 5 | F12: 0 | G12: 0 | H12: 0 | I12: =H12/'Total Costs'!$D$5 -> 0 | J12: =IF(C12=0,0,((D12+F12)/2)*'Total Costs'!$D$7) -> 0 | K12: =J12/'Total Costs'!$D$5 -> 0
B13: Spare Propellers | C13: 8 | D13: 35 | E13: 5 | F13: 0 | G13: 280 | H13: 56 | I13: =H13/'Total Costs'!$D$5 -> 0.009855684618 | J13: =IF(C13=0,0,((D13+F13)/2)*'Total Costs'!$D$7) -> 1.05 | K13: =J13/'Total Costs'!$D$5 -> 0.0001847940866
B15: Optional
B16: Wifi Hotspot | C16: 0 | D16: 200 | E16: 5 | F16: 0 | G16: =D16*C16 -> 0 | H16: =((D16-F16)/E16)*C16 -> 0 | I16: =H16/'Total Costs'!$D$5 -> 0 | J16: =IF(C16=0,0,((D16+F16)/2)*'Total Costs'!$D$7) -> 0 | K16: =J16/'Total Costs'!$D$5 -> 0
B17: HDMI Cables | C17: 0 | D17: 15 | E17: 5 | F17: 0 | G17: =D17*C17 -> 0 | H17: =((D17-F17)/E17)*C17 -> 0 | I17: =H17/'Total Costs'!$D$5 -> 0 | J17: =IF(C17=0,0,((D17+F17)/2)*'Total Costs'!$D$7) -> 0 | K17: =J17/'Total Costs'!$D$5 -> 0
B18: Lidar | C18: 0 | D18: 8000 | E18: 5 | F18: 3000 | G18: 0 | H18: 0 | I18: =H18/'Total Costs'!$D$5 -> 0 | J18: =IF(C18=0,0,((D18+F18)/2)*'Total Costs'!$D$7) -> 0 | K18: =J18/'Total Costs'!$D$5 -> 0
B19: Multispec Camera | C19: 0 | D19: 2000 | E19: 5 | F19: 500 | G19: 0 | H19: 0 | I19: =H19/'Total Costs'!$D$5 -> 0 | J19: =IF(C19=0,0,((D19+F19)/2)*'Total Costs'!$D$7) -> 0 | K19: =J19/'Total Costs'!$D$5 -> 0
B20: Thermal Camera | C20: 0 | D20: 2000 | E20: 5 | F20: 0 | G20: 0 | H20: 0 | I20: =H20/'Total Costs'!$D$5 -> 0 | J20: =IF(C20=0,0,((D20+F20)/2)*'Total Costs'!$D$7) -> 0 | K20: =J20/'Total Costs'!$D$5 -> 0
B21: Other camera | C21: 0 | D21: 1000 | E21: 5 | F21: 0 | G21: 0 | H21: 0 | I21: =H21/'Total Costs'!$D$5 -> 0 | J21: =IF(C21=0,0,((D21+F21)/2)*'Total Costs'!$D$7) -> 0 | K21: =J21/'Total Costs'!$D$5 -> 0
B22: Mounts | C22: 0 | D22: 50 | E22: 5 | F22: 0 | G22: 0 | H22: 0 | I22: =H22/'Total Costs'!$D$5 -> 0 | J22: =IF(C22=0,0,((D22+F22)/2)*'Total Costs'!$D$7) -> 0 | K22: =J22/'Total Costs'!$D$5 -> 0
B23: Tank | C23: 1 | D23: 500 | E23: 5 | F23: 0 | G23: =D23*C23 -> 500 | H23: =((D23-F23)/E23)*C23 -> 100 | I23: =H23/'Total Costs'!$D$5 -> 0.01759943682 | J23: =IF(C23=0,0,((D23+F23)/2)*'Total Costs'!$D$7) -> 15 | K23: =J23/'Total Costs'!$D$5 -> 0.002639915523
B24: Pump for tank | C24: 1 | D24: 1200 | E24: 5 | F24: 0 | G24: =D24*C24 -> 1200 | H24: =((D24-F24)/E24)*C24 -> 240 | I24: =H24/'Total Costs'!$D$5 -> 0.04223864836 | J24: =IF(C24=0,0,((D24+F24)/2)*'Total Costs'!$D$7) -> 36 | K24: =J24/'Total Costs'!$D$5 -> 0.006335797254
B25: RTK Equipment | C25: 2 | D25: 25000 | E25: 10 | F25: 2500 | G25: =D25*C25 -> 50000 | H25: =((D25-F25)/E25)*C25 -> 4500 | I25: =H25/'Total Costs'!$D$5 -> 0.7919746568 | J25: =IF(C25=0,0,((D25+F25)/2)*'Total Costs'!$D$7) -> 825 | K25: =J25/'Total Costs'!$D$5 -> 0.1451953537
B26: Other | C26: 0 | D26: 0 | E26: 5 | F26: 0 | G26: =D26*C26 -> 0 | H26: =((D26-F26)/E26)*C26 -> 0 | I26: =H26/'Total Costs'!$D$5 -> 0 | J26: =IF(C26=0,0,((D26+F26)/2)*'Total Costs'!$D$7) -> 0 | K26: =J26/'Total Costs'!$D$5 -> 0
B27: Other | C27: 0 | D27: 0 | E27: 5 | F27: 0 | G27: 0 | H27: 0 | I27: =H27/'Total Costs'!$D$5 -> 0 | J27: =IF(C27=0,0,((D27+F27)/2)*'Total Costs'!$D$7) -> 0 | K27: =J27/'Total Costs'!$D$5 -> 0
B28: Other | C28: 0 | D28: 0 | E28: 5 | F28: 0 | G28: 0 | H28: 0 | I28: =H28/'Total Costs'!$D$5 -> 0 | J28: =IF(C28=0,0,((D28+F28)/2)*'Total Costs'!$D$7) -> 0 | K28: =J28/'Total Costs'!$D$5 -> 0
B29: Other | C29: 0 | D29: 0 | E29: 5 | F29: 0 | G29: 0 | H29: 0 | I29: =H29/'Total Costs'!$D$5 -> 0 | J29: =IF(C29=0,0,((D29+F29)/2)*'Total Costs'!$D$7) -> 0 | K29: =J29/'Total Costs'!$D$5 -> 0
B31: Command Center Options
B32: Sprayer Trailer | C32: 1 | D32: 8000 | E32: 5 | F32: 0 | G32: =D32*C32 -> 8000 | H32: =((D32-F32)/E32)*C32 -> 1600 | I32: =H32/'Total Costs'!$D$5 -> 0.2815909891 | J32: =I32/'Total Costs'!$D$5 -> 4.955842821e-05 | K32: =J32/'Total Costs'!$D$5 -> 8.722004261e-09
B33: Chair | C33: 2 | D33: 50 | E33: 5 | F33: 0 | G33: 100 | H33: 20 | I33: =H33/'Total Costs'!$D$5 -> 0.003519887364 | J33: =I33/'Total Costs'!$D$5 -> 6.194803526e-07 | K33: =J33/'Total Costs'!$D$5 -> 1.090250533e-10
B34: Table | C34: 1 | D34: 100 | E34: 10 | F34: 0 | G34: 100 | H34: 10 | I34: =H34/'Total Costs'!$D$5 -> 0.001759943682 | J34: =I34/'Total Costs'!$D$5 -> 3.097401763e-07 | K34: =J34/'Total Costs'!$D$5 -> 5.451252663e-11
B35: Laptop | C35: 0 | D35: 1500 | E35: 5 | F35: 0 | G35: 0 | H35: 0 | I35: =H35/'Total Costs'!$D$5 -> 0 | J35: =I35/'Total Costs'!$D$5 -> 0 | K35: =J35/'Total Costs'!$D$5 -> 0
B36: Large Screen TV | C36: 0 | D36: 500 | E36: 5 | F36: 0 | G36: 0 | H36: 0 | I36: =H36/'Total Costs'!$D$5 -> 0 | J36: =I36/'Total Costs'!$D$5 -> 0 | K36: =J36/'Total Costs'!$D$5 -> 0
B37: Generator | C37: 1 | D37: 1500 | E37: 20 | F37: 600 | G37: 1500 | H37: 45 | I37: =H37/'Total Costs'!$D$5 -> 0.007919746568 | J37: =I37/'Total Costs'!$D$5 -> 1.393830793e-06 | K37: =J37/'Total Costs'!$D$5 -> 2.453063698e-10
B38: Power Converter | C38: 0 | D38: 5 | E38: 4.5 | F38: 0 | G38: 0 | H38: 0 | I38: =H38/'Total Costs'!$D$5 -> 0 | J38: =I38/'Total Costs'!$D$5 -> 0 | K38: =J38/'Total Costs'!$D$5 -> 0
B39: Mounts | C39: 0 | D39: 75 | E39: 4.5 | F39: 0 | G39: 0 | H39: 0 | I39: =H39/'Total Costs'!$D$5 -> 0 | J39: =I39/'Total Costs'!$D$5 -> 0 | K39: =J39/'Total Costs'!$D$5 -> 0
B40: Tent | C40: 0 | D40: 200 | E40: 3 | F40: 0 | G40: 0 | H40: 0 | I40: =H40/'Total Costs'!$D$5 -> 0 | J40: =I40/'Total Costs'!$D$5 -> 0 | K40: =J40/'Total Costs'!$D$5 -> 0
B41: Miscellaneous | C41: 0 | D41: 1000 | E41: 4.5 | F41: 0 | G41: 0 | H41: 0 | I41: =H41/'Total Costs'!$D$5 -> 0 | J41: =I41/'Total Costs'!$D$5 -> 0 | K41: =J41/'Total Costs'!$D$5 -> 0
B43: Total Investment | G43: =SUM(G6:G41) -> 128580 | H43: =SUM(H6:H41) -> 18741 | I43: =SUM(I6:I41) -> 3.298310454 | J43: =SUM(J6:J41) -> 1559.550052 | K43: =SUM(K6:K41) -> 0.274472026

Sheet Certificates & Licenses
B3: Certificates & Licenses for Sprayer Drones | C3: Years Valid | D3: Purchase Price | E3: Annual Cost | F3: Cost Per Flight
B5: Required Federal
B6: FAA Remote Pilot Certificate Knowledge Exam | C6: 2 | D6: 175 | E6: =D6/C6 -> 87.5 | F6: =E6/'Total Costs'!$D$5 -> 0.01539950722
B7: FAA UAS Registration | C7: 3 | D7: 5 | E7: =(D7*'Equipment Ownership'!C6)/C7 -> 5 | F7: =E7/'Total Costs'!$D$5 -> 0.0008799718409
B8: FAA Part 137 and 107.36 Exemptions (<55 lb.) | E8: =IFERROR((D8/C8),0) -> 0 | F8: =E8/'Total Costs'!$D$5 -> 0
B9: Agricultural Aircraft Operator Certificate Application | E9: =IFERROR((D9/C9),0) -> 0 | F9: =E9/'Total Costs'!$D$5 -> 0
B10: 49 U.S.C. §44807 Exemption (> 55 lbs) | E10: 0 | F10: =E10/'Total Costs'!$D$5 -> 0
B11: FAA Part 61, 91, and 137 Exemptions (> 55 lb.) | E11: 0 | F11: =E11/'Total Costs'!$D$5 -> 0
B12: Other | C12: 0 | D12: 0 | E12: 0 | F12: =E12/'Total Costs'!$D$5 -> 0
B14: Optional Federal
B15: FAA Study Material for Remote Pilot Test | C15: 1 | D15: 20 | E15: =IFERROR((D15/C15),0) -> 20 | F15: =E15/'Total Costs'!$D$5 -> 0.003519887364
B16: CFR § 107.35 (Operate Multiple Drones (< 55 lb.) | E16: =IFERROR((D16/C16),0) -> 0 | F16: =E16/'Total Costs'!$D$5 -> 0
B17: Other | C17: 0 | D17: 0 | E17: 0 | F17: =E17/'Total Costs'!$D$5 -> 0
B19: Required State (Kentucky)
B20: Commercial Pesticide Applicator | C20: 1 | D20: 10 | E20: =IFERROR(D20/C20,0) -> 10 | F20: =E20/'Total Costs'!$D$5 -> 0.001759943682
B21: Commercial Pesticide Operator | C21: 1 | D21: 25 | E21: =IFERROR(D21/C21,0) -> 25 | F21: =E21/'Total Costs'!$D$5 -> 0.004399859205
B22: Other | C22: 0 | D22: 0 | E22: =IFERROR((D22/C22),0) -> 0 | F22: =E22/'Total Costs'!$D$5 -> 0
B24: Required Other States
B25: Other | C25: 0 | D25: 0 | E25: =IFERROR((D25/C25),0) -> 0 | F25: =E25/'Total Costs'!$D$5 -> 0
B26: Other | C26: 0 | D26: 0 | E26: 0 | F26: =E26/'Total Costs'!$D$5 -> 0
B27: Other | C27: 0 | D27: 0 | E27: 0 | F27: =E27/'Total Costs'!$D$5 -> 0
B29: Total Cost | D29: =SUM(D6:D28) -> 235 | E29: =SUM(E6:E28) -> 147.5 | F29: =SUM(F6:F28) -> 0.02595916931

Sheet Utilities
B3: Select the Power Source
B4: Batteries Only
B5: Conventional Electric Resources
B6: Equipment Information | C6: Total Calculated Flights | D6: % of Batteries Charged Using Conventional Electric | E6: Number of Batteries Recharged | F6: Number of Batteries Used Per Flight | G6: Charger Power Requirements (Watts) | H6: Duration of Charge (Hours) | I6: Cost Per kWh | J6: Number of Batteries Simultaneously Charged | K6: Annual Cost | L6: Cost Per Flight | O6: Batteries Only
O7: Hybrid (Battery and Liquid Fuel)
B8: UAS Battery | C8: ='Total Costs'!$D$5 -> 5682 | D8: =1-D16 -> 0.05 | E8: =C8*D8 -> 284.1 | F8: 1 | G8: 2600 | H8: 0.33 | I8: 0.1 | J8: 1 | K8: =IF($B$4=$O$8,0,IFERROR((H8*G8*I8*F8/1000)*E8/J8,0)) -> 24.37578 | L8: =K8/'Total Costs'!$D$5 -> 0.00429 | O8: Fuel Only
B9: Other | C9: ='Total Costs'!$D$5 -> 5682 | D9: 0 | E9: =C9*D9 -> 0 | F9: 0.5 | G9: 100 | H9: 1 | I9: 1.1 | J9: 1 | K9: =IF($B$4=$O$8,0,IFERROR((H9*G9*I9*F9/1000)*E9/J9,0)) -> 0 | L9: =K9/'Total Costs'!$D$5 -> 0
B13: Generator Fuel Use
B14: Generator Fuel Use | C14: Total Calculated Flights | D14: % of Batteries Charged Using Generator Electric | E14: Number of Batteries Recharged | F14: Number of Batteries Used Per Flight | G14: Gallons of Fuel Used Per Hour by Generator | H14: Duration of Charge (Hours) | I14: Cost Per Gallon of Fuel | J14: Number of Batteries Simultaneously Charged | K14: Annual Cost | L14: Cost Per Flight
B16: Generator | C16: ='Total Costs'!$D$5 -> 5682 | D16: 0.95 | E16: =C16*D16 -> 5397.9 | F16: 2 | G16: 0.75 | H16: 0.166 | I16: 3 | J16: 2 | K16: =IF(B4=O8,0,IFERROR((H16*G16*I16*F16)*E16/J16,0)) -> 2016.11565 | L16: =K16/C16 -> 0.354825
B21: Hybrid or Fuel Powered UAS
B22: Hybrid or Fuel Powered UAS | C22: Total Calculated Flights | D22: =IF(E24="Ounces", "Ounces of Fuel Used Per Flight",IF(E24="Pints","Pints of Fuel Used Per Flight",IF(E24="Quarts","Quarts of Fuel Used Per Flight","Gallons of Fuel Used Per Flight"))) -> Ounces of Fuel Used Per Flight | E22: Select UAS Fuel Units | I22: Cost Per Gallon of Fuel | K22: Annual Cost | L22: Cost Per Flight | P22: Ounces
P23: Pints
B24: =IF(B4="Hybrid (Battery and Liquid Fuel)","Hybrid","Fuel Powered ONLY UAS") -> Fuel Powered ONLY UAS | C24: ='Total Costs'!$D$5 -> 5682 | D24: 4 | E24: Ounces | I24: 3 | K24: =IF(B4=O6,0,IF(E24="Ounces",CONVERT(D24,"oz","gal")*C24*I24,IF(E24="Pints",CONVERT(D24,"us_pt","gal")*C24*I24,IF(E24="Quarts",CONVERT(D24,"qt","gal")*C24*I24,C24*D24*I24)))) -> 0 | L24: =IFERROR(K24/C24,0) -> 0 | P24: Quarts
P25: Gallons
B27: Total Utility Cost | K27: Annual Cost | L27: Cost Per Flight
B28: Total Cost | K28: =SUM(K8:K9,K16,K24) -> 2040.49143 | L28: =SUM(L8:L9,L16,L24) -> 0.359115

Sheet Software
B3: Software | C3: Years Valid | D3: Initial Cost | E3: Annual Cost | F3: Cost Per Flight
B5: Flight Software | C5: 0 | D5: 0 | E5: =IFERROR(D5/C5,0) -> 0 | F5: =E5/'Total Costs'!$D$5 -> 0
B6: Post-Processing Software | C6: 0 | D6: 0 | E6: =IFERROR(D6/C6,0) -> 0 | F6: =E6/'Total Costs'!$D$5 -> 0
B7: Upgrades & Support License | C7: 0 | D7: 0 | E7: =IFERROR(D7/C7,0) -> 0 | F7: =E7/'Total Costs'!$D$5 -> 0
B8: Other | C8: 0 | D8: 0 | E8: =IFERROR(D8/C8,0) -> 0 | F8: =E8/'Total Costs'!$D$5 -> 0
B10: Total Cost | D10: =SUM(D5:D8) -> 0 | E10: =SUM(E5:E8) -> 0 | F10: =SUM(F5:F8) -> 0

Sheet Insurance
B3: Insurance Information | C3: Years Valid | D3: Intial Cost | E3: Annual Cost | F3: Cost Per Flight
B5: Hull Insurance | C5: 1 | D5: 2500 | E5: =IFERROR(D5/C5,0) -> 2500 | F5: =E5/'Total Costs'!$D$5 -> 0.4399859205
B6: Water Damage | E6: =IFERROR(D6/C6,0) -> 0 | F6: =E6/'Total Costs'!$D$5 -> 0
B7: Sensors | E7: 0 | F7: =E7/'Total Costs'!$D$5 -> 0
B9: Liability Insurance | C9: 1 | D9: 2500 | E9: =IFERROR(D9/C9,0) -> 2500 | F9: =E9/'Total Costs'!$D$5 -> 0.4399859205
B10: Public Liability | E10: =IFERROR(D10/C10,0) -> 0 | F10: =E10/'Total Costs'!$D$5 -> 0
B11: Chemical Liability | E11: =IFERROR(D11/C11,0) -> 0 | F11: =E11/'Total Costs'!$D$5 -> 0
B12: Comprehensive Chemical Liability | E12: 0 | F12: =E12/'Total Costs'!$D$5 -> 0
B13: Crop Treated Liability | E13: 0 | F13: =E13/'Total Costs'!$D$5 -> 0
B14: Farmer Liability | E14: 0 | F14: =E14/'Total Costs'!$D$5 -> 0
B15: Adjacent Fields Liability | E15: 0 | F15: =E15/'Total Costs'!$D$5 -> 0
B16: Chemical Drift Liability | E16: 0 | F16: =E16/'Total Costs'!$D$5 -> 0
B18: Additional Insurance | E18: =IFERROR(D18/C18,0) -> 0 | F18: =E18/'Total Costs'!$D$5 -> 0
B19: Payload Coverage | E19: =IFERROR(D19/C19,0) -> 0 | F19: =E19/'Total Costs'!$D$5 -> 0
B20: Ground Station Coverage | E20: 0 | F20: =E20/'Total Costs'!$D$5 -> 0
B21: Non Owned Coverage | E21: 0 | F21: =E21/'Total Costs'!$D$5 -> 0
B22: Personal Injury Coverage | E22: 0 | F22: =E22/'Total Costs'!$D$5 -> 0
B24: Total Cost | D24: =SUM(D5:D22) -> 5000 | E24: =SUM(E5:E22) -> 5000 | F24: =SUM(F5:F22) -> 0.8799718409
B26: * Dedicated aviation insurance may have to be purchased.

Sheet Maintenance & Repairs
B3: Equipment Information | C3: Number of Units | D3: Initial Value | E3: Maintenance & Repair | F3: Annual Cost | G3: Cost Per Flight
B5: Maintenance
B6: UAS Platform | C6: ='Equipment Ownership'!C6 -> 3 | D6: ='Equipment Ownership'!D6 -> 18000 | E6: 0.025 | F6: =D6*E6*C6 -> 1350 | G6: =F6/'Total Costs'!$D$5 -> 0.237592397
B7: Mainframe | C7: 0 | D7: 400 | E7: 0.025 | F7: =D7*E7*C7 -> 0 | G7: =F7/'Total Costs'!$D$5 -> 0
B8: Power Plant | C8: 0 | D8: 400 | E8: 0.025 | F8: =D8*E8*C8 -> 0 | G8: =F8/'Total Costs'!$D$5 -> 0
B9: Navigation System | C9: 0 | D9: 500 | E9: 0.025 | F9: =D9*E9*C9 -> 0 | G9: =F9/'Total Costs'!$D$5 -> 0
B10: Electronic System | C10: 0 | D10: 200 | E10: 0.025 | F10: =D10*E10*C10 -> 0 | G10: =F10/'Total Costs'!$D$5 -> 0
B12: Repairs
B13: UAS Platform | C13: ='Equipment Ownership'!C6 -> 3 | D13: ='Equipment Ownership'!D6 -> 18000 | E13: =E6 -> 0.025 | F13: =D13*E13*C13 -> 1350 | G13: =F13/'Total Costs'!$D$5 -> 0.237592397
B14: Mainframe | C14: 0 | D14: 400 | E14: =E7 -> 0.025 | F14: =D14*E14*C14 -> 0 | G14: =F14/'Total Costs'!$D$5 -> 0
B15: Power Plant | C15: =C8 -> 0 | D15: 400 | E15: =E8 -> 0.025 | F15: =D15*E15*C15 -> 0 | G15: =F15/'Total Costs'!$D$5 -> 0
B16: Navigation System | C16: =C9 -> 0 | D16: 500 | E16: =E9 -> 0.025 | F16: =D16*E16*C16 -> 0 | G16: =F16/'Total Costs'!$D$5 -> 0
B17: Electronic System | C17: =C10 -> 0 | D17: 200 | E17: =E10 -> 0.025 | F17: =D17*E17*C17 -> 0 | G17: =F17/'Total Costs'!$D$5 -> 0
B19: Total Cost | F19: =SUM(F6:F17) -> 2700 | G19: =SUM(G6:G17) -> 0.4751847941
B21: * Condition Based Maintenance = Cost Savings + Higher System Reliability + Reduced Liability
B23: * Impact of ineffective maintenance: Replacement cost of a lost UAS, cost of UAS accidents, reduced productivity due to loss of the actual time that the UAS is airborne, cancellation of contracts due to an on-site crash, liability exposure in the case of a crash causing personal injury, environmental damage or equipment damage

Sheet Chemicals1
B3: Sheet Description
B5: Sheet Status | C5: =Directory!E17 -> Enabled | D5: =IF(C3="Disabled","**To Activate Go to Directory Tab**","") -> 
B6: Chemical 1 Name | C6: =Directory!B17 -> Corn Fungicide, 13.7 oz/acre
B9: Chemical & Drone Information | H9: oz Chem. Per Acre | J9: oz
H10: pt Chem. Per Acre | J10: pt
B11: Chemical Information | H11: qt Chem. Per Acre | J11: qt
B12: Chemical Cost | C12: 489.98 | D12: per | E12: 2.5 | F12: gal | J12: gal
B13: Chemical Cost per Gallon | C13: =C12/IF(F12="oz",CONVERT(E12,"oz","gal"),IF(F12="pt",CONVERT(E12,"us_pt","gal"),IF(F12="qt",CONVERT(E12,"qt","gal"),E12))) -> 195.992 | D13: /gal
B14: Carrier Cost per Gallon | C14: 0.007 | D14: /gal
B15: Chemical Application Rate | C15: 13.7 | D15: oz Chem. Per Acre
G16: =IF(D15="oz Chem. Per Acre",CONVERT($C$15,"oz","gal")*$C$13+$C$14*($C$18-CONVERT($C$15,"oz","gal")),IF(D15="pt Chem. Per Acre",CONVERT($C$15,"us_pt","gal")*$C$13+$C$14*($C$18-CONVERT($C$15,"us_pt","gal")),CONVERT($C$15,"qt","gal")*$C$13+$C$14*($C$18-CONVERT($C$15,"qt","gal")))) -> 20.99751953
B17: Spray Volume = (Chemical + Carrier) | C17: Imperial Units | E17: Metric Units | G17: =IF(D15="oz Chem. Per Acre",-CONVERT($C$15,"oz","gal")+$C$18,IF(D15="pt Chem. Per Acre",-CONVERT(C15,"us_pt","gal")+C18,-CONVERT(C15,"qt","gal")+C18)) -> 2.89296875
B18: Spray Volume Per Acre | C18: 3 | D18: gal/acre | E18: =CONVERT(C18,"gal","l") -> 11.35623535 | F18: L/acre | G18: =IF(G17>=0,"","CHECK UNITS") -> 
B19: Cost Per Spray Volume | C19: =G16/C18 -> 6.999173177 | D19: /gal | E19: =C19/CONVERT(1,"gal","l") -> 1.848985943 | F19: /L
B21: Drone Sprayer Specifications
B22: Spray Tank Volume | C22: 2.64 | D22: gal | E22: =CONVERT(C22,"gal","l") -> 9.99348711 | F22: L
B23: Max. Operating Speed for Spraying | C23: 15 | D23: mph | E23: =CONVERT(C23,"mph","m/sec") -> 6.7056 | F23: m/s
B24: Effective Spray Width | C24: 16.4 | D24: ft | E24: =CONVERT(C24,"ft","m") -> 4.99872 | F24: m
B25: Max. Flow Rate | C25: 1.32 | D25: gal/min | E25: =CONVERT(C25,"gal","l") -> 4.996743555 | F25: L/min
B26: Max. Flight Time | C26: 15 | D26: min | E26: =C26 -> 15 | F26: min
B27: Max. Sprayer Application Time | C27: 13 | D27: min | E27: =C27 -> 13 | F27: min
B29: Calculated Flow Rate Required at Max. Operating Speed | C29: =CONVERT(E29,"l","gal") -> 1.490907773 | D29: gal/min | E29: =$E$18*E23*60*$E$24/4046.86 -> 5.643699852 | F29: L/min | G29: =IF(E29>E25,"Too High","") -> Too High
B30: Calculated Speed Required at Max. Operating Flow Rate | C30: =CONVERT(E30,"m/sec","mph") -> 13.28049955 | D30: mph | E30: =E25/E18*4046.86/E24/60 -> 5.936914517 | F30: m/s
B32: SET Actual Operating Speed | C32: =CONVERT(E32,"m/sec","mph") -> 13.28049955 | D32: mph | E32: =IF(E30<E23,E30,E23) -> 5.936914517 | F32: m/s
B33: Flow Rate at Actual Operating Speed | C33: =CONVERT(E33,"l","gal") -> 1.32 | D33: gal/min | E33: =$E$18*E32*60*$E$24/4046.86 -> 4.996743555 | F33: L/min
B35: Full Load
B36: Operational Flight Time Required to Empty Tank Completely | C36: =E22/E33 -> 2 | D36: min | E36: =C36 -> 2 | F36: min | G36: =IF(C36>E27,"* Partial Load",IF(AND(C36<=E27,C36>=E27*0.8),"*Watch Time","* Good Time")) -> * Good Time
B37: Acres Sprayed Per Flight | C37: =C36*E32*60*E24/4046.86 -> 0.88 | D37: acre | E37: =C37 -> 0.88 | F37: acre
B39: Partial Load
B40: Application Amount | C40: =CONVERT(E40,"l","gal") -> 17.16 | D40: gal | E40: =E27*E33 -> 64.95766621 | F40: L
B41: Acres Covered Per Flight | C41: =E41 -> 5.72 | D41: acre | E41: =E27*E32*60*E24/4046.86 -> 5.72 | F41: acre
B43: Flight Information
B45: Total Acres Sprayed | C45: 2500 | D45: acres | G45: =IF(C5="Enabled",C45,"") -> 2500
B46: Number of Drones Available | C46: ='Equipment Ownership'!C6 -> 3 | D46: drones
B47: Number of Drones Used | C47: 3 | D47: drones
B48: Total Number of Flights | C48: =ROUNDUP(IF(G36="* Partial Load",C45/E41,C45/(C37)),0) -> 2841 | D48: flights | G48: =IF(C5="Enabled",C48,"") -> 2841
B51: Personnel Information
B53: Overall Labor Cost | C53: 450 | D53: /hour
E55: =IF(C47>1,"Assumes Simulataneous UAS Spraying","") -> Assumes Simulataneous UAS Spraying
B56: Personnel Responsibilities | C56: Time Allocated Per Flight (Minutes) | D56: Labor Cost ($/hr) | E56: Total Time (Hours) | F56: Annual Cost | G56: Annual Cost Per UAS | H56: Cost Per Flight
B58: Flight Planning & Setup | C58: 0.1 | D58: =$C$53 -> 450 | E58: =C58*$C$48/60/$C$47 -> 1.578333333 | F58: =(D58*C58/60)*$C$48 -> 2130.75 | G58: =(D58*C58/60)*$C$48/$C$47 -> 710.25 | H58: =G58/($C$48/$C$47) -> 0.75
B59: Ferrying | C59: 0.5 | D59: 450 | E59: 7.891666667 | F59: 10653.75 | G59: =D59*C59/60*$C$48/$C$47 -> 3551.25 | H59: =G59/($C$48/$C$47) -> 3.75
B60: Actual UAS Spraying Time | C60: =IF(G36="* Partial Load",E27,Chemicals1!C36) -> 2 | D60: 450 | E60: 31.56666667 | F60: 42615 | G60: 14205 | H60: 15
B61: Time Spent Between Flights | C61: 0.5 | D61: 450 | E61: 7.891666667 | F61: 10653.75 | G61: 3551.25 | H61: 3.75
B62: Post-Processing | C62: 0 | D62: 450 | E62: 0 | F62: 0 | G62: 0 | H62: 0
B63: Visual Observer | C63: =SUM(C58:C61) -> 3.1 | D63: 20 | E63: 48.92833333 | F63: 2935.7 | G63: 978.5666667 | H63: 1.033333333
B64: Other | C64: 0 | D64: 450 | E64: 0 | F64: 0 | G64: 0 | H64: 0
B66: Personnel Total Cost | F66: =SUM(F58:F64) -> 68988.95 | G66: =SUM(G58:G64) -> 22996.31667 | H66: =SUM(H58:H64) -> 24.28333333
B68: Total Man Hours | E68: =SUM(E58:E64) -> 97.85666667
B69: Pilot in Command (PIC) Hours | E69: =SUM(E58:E62,E64) -> 48.92833333
B70: Pilot in Command (PIC) Weeks (40 hrs) | E70: =E69/40 -> 1.223208333
B71: Capacity (Acres Per Hour) PIC | E71: =C45/E69 -> 51.09513915
B73: Economic Considerations
B75: Cost Per Flight
B76: Total UAS Cost of Application Per Flight | C76: =('Total Costs'!E23)+H66 -> 29.59634662 | D76: /flight
B77: Total Chemical Cost Per Flight | C77: =E22*E19 -> 18.47781719 | D77: /flight
B78: Total Cost (UAS & Chemical) Per Flight | C78: =SUM(C76:C77) -> 48.07416381 | D78: /flight
B80: Cost Per Acre
B81: Total UAS Cost of Application Per Acre | C81: =IF($G$36="* Partial Load",$C$76/$E$41,$C$76/$C$37) -> 33.63221207 | D81: /acre
B82: Total Chemical Cost Per Acre | C82: =E19*E18 -> 20.99751953 | D82: /acre
B83: Total Cost (UAS & Chemical) Per Acre | C83: =SUM(C81:C82) -> 54.6297316 | D83: /acre
B86: $/bu for Crop | C86: 8 | D86: /bu
B87: Breakeven Increase in Yield Bu/Acre Required | C87: =C83/C86 -> 6.82871645 | D87: bu
B89: =IF('Total Costs'!D8='Total Costs'!G17,"Pilot in Command (PIC) Cost","Pilot in Command (PIC) Income") -> Pilot in Command (PIC) Income | C89: =SUM(G58:G62,G64)*C47 -> 66053.25 | E89: =IF(C5="Enabled",F66,"") -> 68988.95
B90: Pilot in Command (PIC) ($/Flight) | C90: =C89/C48 -> 23.25 | D90: /flight
B92: Total Cost (UAS & Chemical) | C92: =C83*C45 -> 136574.329
B95: Desired Total UAS Cost of Application Per Acre | C95: 12 | D95: /acre

Sheet Chemicals2
B3: Sheet Description
B5: Sheet Status | C5: =Directory!E18 -> Enabled | D5: =IF(C3="Disabled","**To Activate Go to Directory Tab**","") -> 
B6: Chemical 1 Name | C6: =Directory!B18 -> Soybean Fungicide, 13.7 oz/acre
B9: Chemical & Drone Information | H9: oz Chem. Per Acre | J9: oz
H10: pt Chem. Per Acre | J10: pt
B11: Chemical Information | H11: qt Chem. Per Acre | J11: qt
B12: Chemical Cost | C12: 489.98 | D12: per | E12: 2.5 | F12: gal | J12: gal
B13: Chemical Cost per Gallon | C13: =C12/IF(F12="oz",CONVERT(E12,"oz","gal"),IF(F12="pt",CONVERT(E12,"us_pt","gal"),IF(F12="qt",CONVERT(E12,"qt","gal"),E12))) -> 195.992 | D13: /gal
B14: Carrier Cost per Gallon | C14: 0.007 | D14: /gal
B15: Chemical Application Rate | C15: 13.7 | D15: oz Chem. Per Acre
G16: =IF(D15="oz Chem. Per Acre",CONVERT($C$15,"oz","gal")*$C$13+$C$14*($C$18-CONVERT($C$15,"oz","gal")),IF(D15="pt Chem. Per Acre",CONVERT($C$15,"us_pt","gal")*$C$13+$C$14*($C$18-CONVERT($C$15,"us_pt","gal")),CONVERT($C$15,"qt","gal")*$C$13+$C$14*($C$18-CONVERT($C$15,"qt","gal")))) -> 20.99751953
B17: Spray Volume = (Chemical + Carrier) | C17: Imperial Units | E17: Metric Units | G17: =IF(D15="oz Chem. Per Acre",-CONVERT($C$15,"oz","gal")+$C$18,IF(D15="pt Chem. Per Acre",-CONVERT(C15,"us_pt","gal")+C18,-CONVERT(C15,"qt","gal")+C18)) -> 2.89296875
B18: Spray Volume Per Acre | C18: 3 | D18: gal/acre | E18: =CONVERT(C18,"gal","l") -> 11.35623535 | F18: L/acre | G18: =IF(G17>=0,"","CHECK UNITS") -> 
B19: Cost Per Spray Volume | C19: =G16/C18 -> 6.999173177 | D19: /gal | E19: =C19/CONVERT(1,"gal","l") -> 1.848985943 | F19: /L
B21: Drone Sprayer Specifications
B22: Spray Tank Volume | C22: 2.64 | D22: gal | E22: =CONVERT(C22,"gal","l") -> 9.99348711 | F22: L
B23: Max. Operating Speed for Spraying | C23: 15.66 | D23: mph | E23: =CONVERT(C23,"mph","m/sec") -> 7.0006464 | F23: m/s
B24: Effective Spray Width | C24: 16.4 | D24: ft | E24: =CONVERT(C24,"ft","m") -> 4.99872 | F24: m
B25: Max. Flow Rate | C25: 1.32 | D25: gal/min | E25: =CONVERT(C25,"gal","l") -> 4.996743555 | F25: L/min
B26: Max. Flight Time | C26: 15 | D26: min | E26: =C26 -> 15 | F26: min
B27: Sprayer Application Time | C27: 13 | D27: min | E27: =C27 -> 13 | F27: min
B29: Calculated Flow Rate Required at Max. Operating Speed | C29: =CONVERT(E29,"l","gal") -> 1.556507715 | D29: gal/min | E29: =$E$18*E23*60*$E$24/4046.86 -> 5.892022646 | F29: L/min | G29: =IF(E29>E25,"Too High","") -> Too High
B30: Calculated Speed Required at Max. Operating Flow Rate | C30: =CONVERT(E30,"m/sec","mph") -> 13.28049955 | D30: mph | E30: =E25/E18*4046.86/E24/60 -> 5.936914517 | F30: m/s
B32: SET Actual Operating Speed | C32: =CONVERT(E32,"m/sec","mph") -> 13.28049955 | D32: mph | E32: =IF(E30<E23,E30,E23) -> 5.936914517 | F32: m/s
B33: Flow Rate at Actual Operating Speed | C33: =CONVERT(E33,"l","gal") -> 1.32 | D33: gal/min | E33: =$E$18*E32*60*$E$24/4046.86 -> 4.996743555 | F33: L/min
B35: Full Load
B36: Operational Flight Time Required to Empty Tank Completely | C36: =E22/E33 -> 2 | D36: min | E36: =C36 -> 2 | F36: min | G36: =IF(C36>E27,"* Partial Load",IF(AND(C36<=E27,C36>=E27*0.8),"*Watch Time","* Good Time")) -> * Good Time
B37: Acres Sprayed Per Flight | C37: =C36*E32*60*E24/4046.86 -> 0.88 | D37: acre | E37: =C37 -> 0.88 | F37: acre
B39: Partial Load
B40: Application Amount | C40: =CONVERT(E40,"l","gal") -> 17.16 | D40: gal | E40: =E27*E33 -> 64.95766621 | F40: L
B41: Acres Covered Per Flight | C41: =E41 -> 5.72 | D41: acre | E41: =E27*E32*60*E24/4046.86 -> 5.72 | F41: acre
B43: Flight Information
B45: Total Acres Sprayed | C45: 2500 | D45: acres | G45: =IF(C5="Enabled",C45,"") -> 2500
B46: Number of Drones Available | C46: ='Equipment Ownership'!C6 -> 3 | D46: drones
B47: Number of Drones Used | C47: 3 | D47: drones
B48: Total Number of Flights | C48: =ROUNDUP(IF(G36="* Partial Load",C45/E41,C45/(C37)),0) -> 2841 | D48: flights | G48: =IF(C5="Enabled",C48,"") -> 2841
B51: Personnel Information
B53: Overall Labor Cost | C53: 450 | D53: /hour
E55: =IF(C47>1,"Assumes Simulataneous UAS Spraying","") -> Assumes Simulataneous UAS Spraying
B56: Personnel Responsibilities | C56: Time Allocated Per Flight (Minutes) | D56: Labor Cost ($/hr) | E56: Total Time (Hours) | F56: Annual Cost | G56: Annual Cost Per UAS | H56: Cost Per Flight
B58: Flight Planning & Setup | C58: 0.1 | D58: =$C$53 -> 450 | E58: =C58*$C$48/60/$C$47 -> 1.578333333 | F58: =(D58*C58/60)*$C$48 -> 2130.75 | G58: =(D58*C58/60)*$C$48/$C$47 -> 710.25 | H58: =G58/($C$48/$C$47) -> 0.75
B59: Ferrying | C59: 0.5 | D59: 450 | E59: 7.891666667 | F59: 10653.75 | G59: =D59*C59/60*$C$48/$C$47 -> 3551.25 | H59: =G59/($C$48/$C$47) -> 3.75
B60: Actual UAS Spraying Time | C60: =IF(G36="* Partial Load",E27,Chemicals2!C36) -> 2 | D60: 450 | E60: 31.56666667 | F60: 42615 | G60: 14205 | H60: 15
B61: Time Spent Between Flights | C61: 2 | D61: 450 | E61: 31.56666667 | F61: 42615 | G61: 14205 | H61: 15
B62: Post-Processing | C62: 0 | D62: 450 | E62: 0 | F62: 0 | G62: 0 | H62: 0
B63: Visual Observer | C63: =SUM(C58:C61) -> 4.6 | D63: 20 | E63: 72.60333333 | F63: 4356.2 | G63: 1452.066667 | H63: 1.533333333
B64: Other | C64: 0 | D64: 450 | E64: 0 | F64: 0 | G64: 0 | H64: 0
B66: Personnel Total Cost | F66: =SUM(F58:F64) -> 102370.7 | G66: =SUM(G58:G64) -> 34123.56667 | H66: =SUM(H58:H64) -> 36.03333333
B68: Total Man Hours | E68: =SUM(E58:E64) -> 145.2066667
B69: Pilot in Command (PIC) Hours | E69: =SUM(E58:E62,E64) -> 72.60333333
B70: Pilot in Command (PIC) Weeks (40 hrs) | E70: =E69/40 -> 1.815083333
B71: Acres/Hour PIC | E71: =C45/E69 -> 34.43368073
B73: Economic Considerations
B75: Cost Per Flight
B76: Total UAS Cost of Application Per Flight | C76: =('Total Costs'!E23)+H66 -> 41.34634662 | D76: /flight
B77: Total Chemical Cost Per Flight | C77: =E22*E19 -> 18.47781719 | D77: /flight
B78: Total Cost (UAS & Chemical) Per Flight | C78: =SUM(C76:C77) -> 59.82416381 | D78: /flight
B80: Cost Per Acre
B81: Total UAS Cost of Application Per Acre | C81: =IF($G$36="* Partial Load",$C$76/$E$41,$C$76/$C$37) -> 46.98448479 | D81: /acre
B82: Total Chemical Cost Per Acre | C82: =E19*E18 -> 20.99751953 | D82: /acre
B83: Total Cost (UAS & Chemical) Per Acre | C83: =SUM(C81:C82) -> 67.98200432 | D83: /acre
B86: $/bu for Crop | C86: 10 | D86: /bu
B87: Breakeven Increase in Yield Bu/Acre Required | C87: =C83/C86 -> 6.798200432 | D87: bu
B89: =IF('Total Costs'!D8='Total Costs'!G17,"Pilot in Command (PIC) Cost","Pilot in Command (PIC) Income") -> Pilot in Command (PIC) Income | C89: =SUM(G58:G62,G64)*C47 -> 98014.5 | E89: =IF(C5="Enabled",F66,"") -> 102370.7
B90: Pilot in Command (PIC) ($/Flight) | C90: =C89/C48 -> 34.5 | D90: /flight
B92: Total Cost (UAS & Chemical) | C92: =C83*C45 -> 169955.0108
B95: Desired Total UAS Cost of Application Per Acre | C95: 12 | D95: /acre

Sheet Chemicals3
B3: Sheet Description
B5: Sheet Status | C5: =Directory!E19 -> Disabled | D5: =IF(C3="Disabled","**To Activate Go to Directory Tab**","") -> 
B6: Chemical 1 Name | C6: =Directory!B19 -> Fungicide
B9: Chemical & Drone Information | H9: oz Chem. Per Acre | J9: oz
H10: pt Chem. Per Acre | J10: pt
B11: Chemical Information | H11: qt Chem. Per Acre | J11: qt
B12: Chemical Cost | C12: 489.98 | D12: per | E12: 2.5 | F12: gal | J12: gal
B13: Chemical Cost per Gallon | C13: =C12/IF(F12="oz",CONVERT(E12,"oz","gal"),IF(F12="pt",CONVERT(E12,"us_pt","gal"),IF(F12="qt",CONVERT(E12,"qt","gal"),E12))) -> 195.992 | D13: /gal
B14: Carrier Cost per Gallon | C14: 0.007 | D14: /gal
B15: Chemical Application Rate | C15: 13.7 | D15: oz Chem. Per Acre
G16: =IF(D15="oz Chem. Per Acre",CONVERT($C$15,"oz","gal")*$C$13+$C$14*($C$18-CONVERT($C$15,"oz","gal")),IF(D15="pt Chem. Per Acre",CONVERT($C$15,"us_pt","gal")*$C$13+$C$14*($C$18-CONVERT($C$15,"us_pt","gal")),CONVERT($C$15,"qt","gal")*$C$13+$C$14*($C$18-CONVERT($C$15,"qt","gal")))) -> 20.99751953
B17: Spray Volume = (Chemical + Carrier) | C17: Imperial Units | E17: Metric Units | G17: =IF(D15="oz Chem. Per Acre",-CONVERT($C$15,"oz","gal")+$C$18,IF(D15="pt Chem. Per Acre",-CONVERT(C15,"us_pt","gal")+C18,-CONVERT(C15,"qt","gal")+C18)) -> 2.89296875
B18: Spray Volume Per Acre | C18: 3 | D18: gal/acre | E18: =CONVERT(C18,"gal","l") -> 11.35623535 | F18: L/acre | G18: =IF(G17>=0,"","CHECK UNITS") -> 
B19: Cost Per Spray Volume | C19: =G16/C18 -> 6.999173177 | D19: /gal | E19: =C19/CONVERT(1,"gal","l") -> 1.848985943 | F19: /L
B21: Drone Sprayer Specifications
B22: Spray Tank Volume | C22: 2.64 | D22: gal | E22: =CONVERT(C22,"gal","l") -> 9.99348711 | F22: L
B23: Max. Operating Speed for Spraying | C23: 15.66 | D23: mph | E23: =CONVERT(C23,"mph","m/sec") -> 7.0006464 | F23: m/s
B24: Effective Spray Width | C24: 16.4 | D24: ft | E24: =CONVERT(C24,"ft","m") -> 4.99872 | F24: m
B25: Max. Flow Rate | C25: 1.32 | D25: gal/min | E25: =CONVERT(C25,"gal","l") -> 4.996743555 | F25: L/min
B26: Max. Flight Time | C26: 15 | D26: min | E26: =C26 -> 15 | F26: min
B27: Sprayer Application Time | C27: 13 | D27: min | E27: =C27 -> 13 | F27: min
B29: Calculated Flow Rate Required at Max. Operating Speed | C29: =CONVERT(E29,"l","gal") -> 1.556507715 | D29: gal/min | E29: =$E$18*E23*60*$E$24/4046.86 -> 5.892022646 | F29: L/min | G29: =IF(E29>E25,"Too High","") -> Too High
B30: Calculated Speed Required at Max. Operating Flow Rate | C30: =CONVERT(E30,"m/sec","mph") -> 13.28049955 | D30: mph | E30: =E25/E18*4046.86/E24/60 -> 5.936914517 | F30: m/s
B32: SET Actual Operating Speed | C32: =CONVERT(E32,"m/sec","mph") -> 13.28049955 | D32: mph | E32: =IF(E30<E23,E30,E23) -> 5.936914517 | F32: m/s
B33: Flow Rate at Actual Operating Speed | C33: =CONVERT(E33,"l","gal") -> 1.32 | D33: gal/min | E33: =$E$18*E32*60*$E$24/4046.86 -> 4.996743555 | F33: L/min
B35: Full Load
B36: Operational Flight Time Required to Empty Tank Completely | C36: =E22/E33 -> 2 | D36: min | E36: =C36 -> 2 | F36: min | G36: =IF(C36>E27,"* Partial Load",IF(AND(C36<=E27,C36>=E27*0.8),"*Watch Time","* Good Time")) -> * Good Time
B37: Acres Sprayed Per Flight | C37: =C36*E32*60*E24/4046.86 -> 0.88 | D37: acre | E37: =C37 -> 0.88 | F37: acre
B39: Partial Load
B40: Application Amount | C40: =CONVERT(E40,"l","gal") -> 17.16 | D40: gal | E40: =E27*E33 -> 64.95766621 | F40: L
B41: Acres Covered Per Flight | C41: =E41 -> 5.72 | D41: acre | E41: =E27*E32*60*E24/4046.86 -> 5.72 | F41: acre
B43: Flight Information
B45: Total Acres Sprayed | C45: 2500 | D45: acres | G45: =IF(C5="Enabled",C45,"") -> 
B46: Number of Drones Available | C46: ='Equipment Ownership'!C6 -> 3 | D46: drones
B47: Number of Drones Used | C47: 3 | D47: drones
B48: Total Number of Flights | C48: =ROUNDUP(IF(G36="* Partial Load",C45/E41,C45/(C37)),0) -> 2841 | D48: flights | G48: =IF(C5="Enabled",C48,"") -> 
B51: Personnel Information
B53: Overall Labor Cost | C53: 450 | D53: /hour
E55: =IF(C47>1,"Assumes Simulataneous UAS Spraying","") -> Assumes Simulataneous UAS Spraying
B56: Personnel Responsibilities | C56: Time Allocated Per Flight (Minutes) | D56: Labor Cost ($/hr) | E56: Total Time (Hours) | F56: Annual Cost | G56: Annual Cost Per UAS | H56: Cost Per Flight
B58: Flight Planning & Setup | C58: 0.1 | D58: =$C$53 -> 450 | E58: =C58*$C$48/60/$C$47 -> 1.578333333 | F58: =(D58*C58/60)*$C$48 -> 2130.75 | G58: =(D58*C58/60)*$C$48/$C$47 -> 710.25 | H58: =G58/($C$48/$C$47) -> 0.75
B59: Ferrying | C59: 0.5 | D59: 450 | E59: 7.891666667 | F59: 10653.75 | G59: =D59*C59/60*$C$48/$C$47 -> 3551.25 | H59: =G59/($C$48/$C$47) -> 3.75
B60: Actual UAS Spraying Time | C60: =IF(G36="* Partial Load",E27,Chemicals3!C36) -> 2 | D60: 450 | E60: 31.56666667 | F60: 42615 | G60: 14205 | H60: 15
B61: Time Spent Between Flights | C61: 0.5 | D61: 450 | E61: 7.891666667 | F61: 10653.75 | G61: 3551.25 | H61: 3.75
B62: Post-Processing | C62: 0 | D62: 450 | E62: 0 | F62: 0 | G62: 0 | H62: 0
B63: Visual Observer | C63: =SUM(C58:C61) -> 3.1 | D63: 20 | E63: 48.92833333 | F63: 2935.7 | G63: 978.5666667 | H63: 1.033333333
B64: Other | C64: 0 | D64: 450 | E64: 0 | F64: 0 | G64: 0 | H64: 0
B66: Personnel Total Cost | F66: =SUM(F58:F64) -> 68988.95 | G66: =SUM(G58:G64) -> 22996.31667 | H66: =SUM(H58:H64) -> 24.28333333
B68: Total Man Hours | E68: =SUM(E58:E64) -> 97.85666667
B69: Pilot in Command (PIC) Hours | E69: =SUM(E58:E62,E64) -> 48.92833333
B70: Pilot in Command (PIC) Weeks (40 hrs) | E70: =E69/40 -> 1.223208333
B71: Acres/Hour PIC | E71: =C45/E69 -> 51.09513915
B73: Economic Considerations
B75: Cost Per Flight
B76: Total UAS Cost of Application Per Flight | C76: =('Total Costs'!E23)+H66 -> 29.59634662 | D76: /flight
B77: Total Chemical Cost Per Flight | C77: =E22*E19 -> 18.47781719 | D77: /flight
B78: Total Cost (UAS & Chemical) Per Flight | C78: =SUM(C76:C77) -> 48.07416381 | D78: /flight
B80: Cost Per Acre
B81: Total UAS Cost of Application Per Acre | C81: =IF($G$36="* Partial Load",$C$76/$E$41,$C$76/$C$37) -> 33.63221207 | D81: /acre
B82: Total Chemical Cost Per Acre | C82: =E19*E18 -> 20.99751953 | D82: /acre
B83: Total Cost (UAS & Chemical) Per Acre | C83: =SUM(C81:C82) -> 54.6297316 | D83: /acre
B86: $/bu for Crop | C86: 10 | D86: /bu
B87: Breakeven Increase in Yield Bu/Acre Required | C87: =C83/C86 -> 5.46297316 | D87: bu
B89: =IF('Total Costs'!D8='Total Costs'!G17,"Pilot in Command (PIC) Cost","Pilot in Command (PIC) Income") -> Pilot in Command (PIC) Income | C89: =SUM(G58:G62,G64)*C47 -> 66053.25 | E89: =IF(C5="Enabled",F66,"") -> 
B90: Pilot in Command (PIC) ($/Flight) | C90: =C89/C48 -> 23.25 | D90: /flight
B92: Total Cost (UAS & Chemical) | C92: =C83*C45 -> 136574.329
B95: Desired Total UAS Cost of Application Per Acre | C95: 12 | D95: /acre

Sheet Chemicals4
B3: Sheet Description
B5: Sheet Status | C5: =Directory!E20 -> Disabled | D5: =IF(C3="Disabled","**To Activate Go to Directory Tab**","") -> 
B6: Chemical 1 Name | C6: =Directory!B20 -> Pesticide
B9: Chemical & Drone Information | H9: oz Chem. Per Acre | J9: oz
H10: pt Chem. Per Acre | J10: pt
B11: Chemical Information | H11: qt Chem. Per Acre | J11: qt
B12: Chemical Cost | C12: 489.98 | D12: per | E12: 2.5 | F12: gal | J12: gal
B13: Chemical Cost per Gallon | C13: =C12/IF(F12="oz",CONVERT(E12,"oz","gal"),IF(F12="pt",CONVERT(E12,"us_pt","gal"),IF(F12="qt",CONVERT(E12,"qt","gal"),E12))) -> 195.992 | D13: /gal
B14: Carrier Cost per Gallon | C14: 0.007 | D14: /gal
B15: Chemical Application Rate | C15: 13.7 | D15: oz Chem. Per Acre
G16: =IF(D15="oz Chem. Per Acre",CONVERT($C$15,"oz","gal")*$C$13+$C$14*($C$18-CONVERT($C$15,"oz","gal")),IF(D15="pt Chem. Per Acre",CONVERT($C$15,"us_pt","gal")*$C$13+$C$14*($C$18-CONVERT($C$15,"us_pt","gal")),CONVERT($C$15,"qt","gal")*$C$13+$C$14*($C$18-CONVERT($C$15,"qt","gal")))) -> 20.99751953
B17: Spray Volume = (Chemical + Carrier) | C17: Imperial Units | E17: Metric Units | G17: =IF(D15="oz Chem. Per Acre",-CONVERT($C$15,"oz","gal")+$C$18,IF(D15="pt Chem. Per Acre",-CONVERT(C15,"us_pt","gal")+C18,-CONVERT(C15,"qt","gal")+C18)) -> 2.89296875
B18: Spray Volume Per Acre | C18: 3 | D18: gal/acre | E18: =CONVERT(C18,"gal","l") -> 11.35623535 | F18: L/acre | G18: =IF(G17>=0,"","CHECK UNITS") -> 
B19: Cost Per Spray Volume | C19: =G16/C18 -> 6.999173177 | D19: /gal | E19: =C19/CONVERT(1,"gal","l") -> 1.848985943 | F19: /L
B21: Drone Sprayer Specifications
B22: Spray Tank Volume | C22: 2.64 | D22: gal | E22: =CONVERT(C22,"gal","l") -> 9.99348711 | F22: L
B23: Max. Operating Speed for Spraying | C23: 15.66 | D23: mph | E23: =CONVERT(C23,"mph","m/sec") -> 7.0006464 | F23: m/s
B24: Effective Spray Width | C24: 16.4 | D24: ft | E24: =CONVERT(C24,"ft","m") -> 4.99872 | F24: m
B25: Max. Flow Rate | C25: 1.32 | D25: gal/min | E25: =CONVERT(C25,"gal","l") -> 4.996743555 | F25: L/min
B26: Max. Flight Time | C26: 15 | D26: min | E26: =C26 -> 15 | F26: min
B27: Sprayer Application Time | C27: 13 | D27: min | E27: =C27 -> 13 | F27: min
B29: Calculated Flow Rate Required at Max. Operating Speed | C29: =CONVERT(E29,"l","gal") -> 1.556507715 | D29: gal/min | E29: =$E$18*E23*60*$E$24/4046.86 -> 5.892022646 | F29: L/min | G29: =IF(E29>E25,"Too High","") -> Too High
B30: Calculated Speed Required at Max. Operating Flow Rate | C30: =CONVERT(E30,"m/sec","mph") -> 13.28049955 | D30: mph | E30: =E25/E18*4046.86/E24/60 -> 5.936914517 | F30: m/s
B32: SET Actual Operating Speed | C32: =CONVERT(E32,"m/sec","mph") -> 13.28049955 | D32: mph | E32: =IF(E30<E23,E30,E23) -> 5.936914517 | F32: m/s
B33: Flow Rate at Actual Operating Speed | C33: =CONVERT(E33,"l","gal") -> 1.32 | D33: gal/min | E33: =$E$18*E32*60*$E$24/4046.86 -> 4.996743555 | F33: L/min
B35: Full Load
B36: Operational Flight Time Required to Empty Tank Completely | C36: =E22/E33 -> 2 | D36: min | E36: =C36 -> 2 | F36: min | G36: =IF(C36>E27,"* Partial Load",IF(AND(C36<=E27,C36>=E27*0.8),"*Watch Time","* Good Time")) -> * Good Time
B37: Acres Sprayed Per Flight | C37: =C36*E32*60*E24/4046.86 -> 0.88 | D37: acre | E37: =C37 -> 0.88 | F37: acre
B39: Partial Load
B40: Application Amount | C40: =CONVERT(E40,"l","gal") -> 17.16 | D40: gal | E40: =E27*E33 -> 64.95766621 | F40: L
B41: Acres Covered Per Flight | C41: =E41 -> 5.72 | D41: acre | E41: =E27*E32*60*E24/4046.86 -> 5.72 | F41: acre
B43: Flight Information
B45: Total Acres Sprayed | C45: 2500 | D45: acres | G45: =IF(C5="Enabled",C45,"") -> 
B46: Number of Drones Available | C46: ='Equipment Ownership'!C6 -> 3 | D46: drones
B47: Number of Drones Used | C47: 3 | D47: drones
B48: Total Number of Flights | C48: =ROUNDUP(IF(G36="* Partial Load",C45/E41,C45/(C37)),0) -> 2841 | D48: flights | G48: =IF(C5="Enabled",C48,"") -> 
B51: Personnel Information
B53: Overall Labor Cost | C53: 450 | D53: /hour
E55: =IF(C47>1,"Assumes Simulataneous UAS Spraying","") -> Assumes Simulataneous UAS Spraying
B56: Personnel Responsibilities | C56: Time Allocated Per Flight (Minutes) | D56: Labor Cost ($/hr) | E56: Total Time (Hours) | F56: Annual Cost | G56: Annual Cost Per UAS | H56: Cost Per Flight
B58: Flight Planning & Setup | C58: 0.1 | D58: =$C$53 -> 450 | E58: =C58*$C$48/60/$C$47 -> 1.578333333 | F58: =(D58*C58/60)*$C$48 -> 2130.75 | G58: =(D58*C58/60)*$C$48/$C$47 -> 710.25 | H58: =G58/($C$48/$C$47) -> 0.75
B59: Ferrying | C59: 0.5 | D59: 450 | E59: 7.891666667 | F59: 10653.75 | G59: =D59*C59/60*$C$48/$C$47 -> 3551.25 | H59: =G59/($C$48/$C$47) -> 3.75
B60: Actual UAS Spraying Time | C60: =IF(G36="* Partial Load",E27,Chemicals4!C36) -> 2 | D60: 450 | E60: 31.56666667 | F60: 42615 | G60: 14205 | H60: 15
B61: Time Spent Between Flights | C61: 0.5 | D61: 450 | E61: 7.891666667 | F61: 10653.75 | G61: 3551.25 | H61: 3.75
B62: Post-Processing | C62: 0 | D62: 450 | E62: 0 | F62: 0 | G62: 0 | H62: 0
B63: Visual Observer | C63: =SUM(C58:C61) -> 3.1 | D63: 20 | E63: 48.92833333 | F63: 2935.7 | G63: 978.5666667 | H63: 1.033333333
B64: Other | C64: 0 | D64: 450 | E64: 0 | F64: 0 | G64: 0 | H64: 0
B66: Personnel Total Cost | F66: =SUM(F58:F64) -> 68988.95 | G66: =SUM(G58:G64) -> 22996.31667 | H66: =SUM(H58:H64) -> 24.28333333
B68: Total Man Hours | E68: =SUM(E58:E64) -> 97.85666667
B69: Pilot in Command (PIC) Hours | E69: =SUM(E58:E62,E64) -> 48.92833333
B70: Pilot in Command (PIC) Weeks (40 hrs) | E70: =E69/40 -> 1.223208333
B71: Acres/Hour PIC | E71: =C45/E69 -> 51.09513915
B73: Economic Considerations
B75: Cost Per Flight
B76: Total UAS Cost of Application Per Flight | C76: =('Total Costs'!E23)+H66 -> 29.59634662 | D76: /flight
B77: Total Chemical Cost Per Flight | C77: =E22*E19 -> 18.47781719 | D77: /flight
B78: Total Cost (UAS & Chemical) Per Flight | C78: =SUM(C76:C77) -> 48.07416381 | D78: /flight
B80: Cost Per Acre
B81: Total UAS Cost of Application Per Acre | C81: =IF($G$36="* Partial Load",$C$76/$E$41,$C$76/$C$37) -> 33.63221207 | D81: /acre
B82: Total Chemical Cost Per Acre | C82: =E19*E18 -> 20.99751953 | D82: /acre
B83: Total Cost (UAS & Chemical) Per Acre | C83: =SUM(C81:C82) -> 54.6297316 | D83: /acre
B86: $/bu for Crop | C86: 10 | D86: /bu
B87: Breakeven Increase in Yield Bu/Acre Required | C87: =C83/C86 -> 5.46297316 | D87: bu
B89: =IF('Total Costs'!D8='Total Costs'!G17,"Pilot in Command (PIC) Cost","Pilot in Command (PIC) Income") -> Pilot in Command (PIC) Income | C89: =SUM(G58:G62,G64)*C47 -> 66053.25 | E89: =IF(C5="Enabled",F66,"") -> 
B90: Pilot in Command (PIC) ($/Flight) | C90: =C89/C48 -> 23.25 | D90: /flight
B92: Total Cost (UAS & Chemical) | C92: =C83*C45 -> 136574.329
B95: Desired Total UAS Cost of Application Per Acre | C95: 12 | D95: /acre

Sheet Chemicals5
B3: Sheet Description
B5: Sheet Status | C5: =Directory!E21 -> Disabled | D5: =IF(C3="Disabled","**To Activate Go to Directory Tab**","") -> 
B6: Chemical 1 Name | C6: =Directory!B21 -> Herbicide
B9: Chemical & Drone Information | H9: oz Chem. Per Acre | J9: oz
H10: pt Chem. Per Acre | J10: pt
B11: Chemical Information | H11: qt Chem. Per Acre | J11: qt
B12: Chemical Cost | C12: 489.98 | D12: per | E12: 2.5 | F12: gal | J12: gal
B13: Chemical Cost per Gallon | C13: =C12/IF(F12="oz",CONVERT(E12,"oz","gal"),IF(F12="pt",CONVERT(E12,"us_pt","gal"),IF(F12="qt",CONVERT(E12,"qt","gal"),E12))) -> 195.992 | D13: /gal
B14: Carrier Cost per Gallon | C14: 0.007 | D14: /gal
B15: Chemical Application Rate | C15: 13.7 | D15: oz Chem. Per Acre
G16: =IF(D15="oz Chem. Per Acre",CONVERT($C$15,"oz","gal")*$C$13+$C$14*($C$18-CONVERT($C$15,"oz","gal")),IF(D15="pt Chem. Per Acre",CONVERT($C$15,"us_pt","gal")*$C$13+$C$14*($C$18-CONVERT($C$15,"us_pt","gal")),CONVERT($C$15,"qt","gal")*$C$13+$C$14*($C$18-CONVERT($C$15,"qt","gal")))) -> 20.99751953
B17: Spray Volume = (Chemical + Carrier) | C17: Imperial Units | E17: Metric Units | G17: =IF(D15="oz Chem. Per Acre",-CONVERT($C$15,"oz","gal")+$C$18,IF(D15="pt Chem. Per Acre",-CONVERT(C15,"us_pt","gal")+C18,-CONVERT(C15,"qt","gal")+C18)) -> 2.89296875
B18: Spray Volume Per Acre | C18: 3 | D18: gal/acre | E18: =CONVERT(C18,"gal","l") -> 11.35623535 | F18: L/acre | G18: =IF(G17>=0,"","CHECK UNITS") -> 
B19: Cost Per Spray Volume | C19: =G16/C18 -> 6.999173177 | D19: /gal | E19: =C19/CONVERT(1,"gal","l") -> 1.848985943 | F19: /L
B21: Drone Sprayer Specifications
B22: Spray Tank Volume | C22: 2.64 | D22: gal | E22: =CONVERT(C22,"gal","l") -> 9.99348711 | F22: L
B23: Max. Operating Speed for Spraying | C23: 15.66 | D23: mph | E23: =CONVERT(C23,"mph","m/sec") -> 7.0006464 | F23: m/s
B24: Effective Spray Width | C24: 16.4 | D24: ft | E24: =CONVERT(C24,"ft","m") -> 4.99872 | F24: m
B25: Max. Flow Rate | C25: 1.32 | D25: gal/min | E25: =CONVERT(C25,"gal","l") -> 4.996743555 | F25: L/min
B26: Max. Flight Time | C26: 15 | D26: min | E26: =C26 -> 15 | F26: min
B27: Sprayer Application Time | C27: 13 | D27: min | E27: =C27 -> 13 | F27: min
B29: Calculated Flow Rate Required at Max. Operating Speed | C29: =CONVERT(E29,"l","gal") -> 1.556507715 | D29: gal/min | E29: =$E$18*E23*60*$E$24/4046.86 -> 5.892022646 | F29: L/min | G29: =IF(E29>E25,"Too High","") -> Too High
B30: Calculated Speed Required at Max. Operating Flow Rate | C30: =CONVERT(E30,"m/sec","mph") -> 13.28049955 | D30: mph | E30: =E25/E18*4046.86/E24/60 -> 5.936914517 | F30: m/s
B32: SET Actual Operating Speed | C32: =CONVERT(E32,"m/sec","mph") -> 13.28049955 | D32: mph | E32: =IF(E30<E23,E30,E23) -> 5.936914517 | F32: m/s
B33: Flow Rate at Actual Operating Speed | C33: =CONVERT(E33,"l","gal") -> 1.32 | D33: gal/min | E33: =$E$18*E32*60*$E$24/4046.86 -> 4.996743555 | F33: L/min
B35: Full Load
B36: Operational Flight Time Required to Empty Tank Completely | C36: =E22/E33 -> 2 | D36: min | E36: =C36 -> 2 | F36: min | G36: =IF(C36>E27,"* Partial Load",IF(AND(C36<=E27,C36>=E27*0.8),"*Watch Time","* Good Time")) -> * Good Time
B37: Acres Sprayed Per Flight | C37: =C36*E32*60*E24/4046.86 -> 0.88 | D37: acre | E37: =C37 -> 0.88 | F37: acre
B39: Partial Load
B40: Application Amount | C40: =CONVERT(E40,"l","gal") -> 17.16 | D40: gal | E40: =E27*E33 -> 64.95766621 | F40: L
B41: Acres Covered Per Flight | C41: =E41 -> 5.72 | D41: acre | E41: =E27*E32*60*E24/4046.86 -> 5.72 | F41: acre
B43: Flight Information
B45: Total Acres Sprayed | C45: 2500 | D45: acres | G45: =IF(C5="Enabled",C45,"") -> 
B46: Number of Drones Available | C46: ='Equipment Ownership'!C6 -> 3 | D46: drones
B47: Number of Drones Used | C47: 3 | D47: drones
B48: Total Number of Flights | C48: =ROUNDUP(IF(G36="* Partial Load",C45/E41,C45/(C37)),0) -> 2841 | D48: flights | G48: =IF(C5="Enabled",C48,"") -> 
B51: Personnel Information
B53: Overall Labor Cost | C53: 450 | D53: /hour
E55: =IF(C47>1,"Assumes Simulataneous UAS Spraying","") -> Assumes Simulataneous UAS Spraying
B56: Personnel Responsibilities | C56: Time Allocated Per Flight (Minutes) | D56: Labor Cost ($/hr) | E56: Total Time (Hours) | F56: Annual Cost | G56: Annual Cost Per UAS | H56: Cost Per Flight
B58: Flight Planning & Setup | C58: 0.1 | D58: =$C$53 -> 450 | E58: =C58*$C$48/60/$C$47 -> 1.578333333 | F58: =(D58*C58/60)*$C$48 -> 2130.75 | G58: =(D58*C58/60)*$C$48/$C$47 -> 710.25 | H58: =G58/($C$48/$C$47) -> 0.75
B59: Ferrying | C59: 0.5 | D59: 450 | E59: 7.891666667 | F59: 10653.75 | G59: =D59*C59/60*$C$48/$C$47 -> 3551.25 | H59: =G59/($C$48/$C$47) -> 3.75
B60: Actual UAS Spraying Time | C60: =IF(G36="* Partial Load",E27,Chemicals5!C36) -> 2 | D60: 450 | E60: 31.56666667 | F60: 42615 | G60: 14205 | H60: 15
B61: Time Spent Between Flights | C61: 0.5 | D61: 450 | E61: 7.891666667 | F61: 10653.75 | G61: 3551.25 | H61: 3.75
B62: Post-Processing | C62: 0 | D62: 450 | E62: 0 | F62: 0 | G62: 0 | H62: 0
B63: Visual Observer | C63: =SUM(C58:C61) -> 3.1 | D63: 20 | E63: 48.92833333 | F63: 2935.7 | G63: 978.5666667 | H63: 1.033333333
B64: Other | C64: 0 | D64: 450 | E64: 0 | F64: 0 | G64: 0 | H64: 0
B66: Personnel Total Cost | F66: =SUM(F58:F64) -> 68988.95 | G66: =SUM(G58:G64) -> 22996.31667 | H66: =SUM(H58:H64) -> 24.28333333
B68: Total Man Hours | E68: =SUM(E58:E64) -> 97.85666667
B69: Pilot in Command (PIC) Hours | E69: =SUM(E58:E62,E64) -> 48.92833333
B70: Pilot in Command (PIC) Weeks (40 hrs) | E70: =E69/40 -> 1.223208333
B71: Acres/Hour PIC | E71: =C45/E69 -> 51.09513915
B73: Economic Considerations
B75: Cost Per Flight
B76: Total UAS Cost of Application Per Flight | C76: =('Total Costs'!E23)+H66 -> 29.59634662 | D76: /flight
B77: Total Chemical Cost Per Flight | C77: =E22*E19 -> 18.47781719 | D77: /flight
B78: Total Cost (UAS & Chemical) Per Flight | C78: =SUM(C76:C77) -> 48.07416381 | D78: /flight
B80: Cost Per Acre
B81: Total UAS Cost of Application Per Acre | C81: =IF($G$36="* Partial Load",$C$76/$E$41,$C$76/$C$37) -> 33.63221207 | D81: /acre
B82: Total Chemical Cost Per Acre | C82: =E19*E18 -> 20.99751953 | D82: /acre
B83: Total Cost (UAS & Chemical) Per Acre | C83: =SUM(C81:C82) -> 54.6297316 | D83: /acre
B86: $/bu for Crop | C86: 10 | D86: /bu
B87: Breakeven Increase in Yield Bu/Acre Required | C87: =C83/C86 -> 5.46297316 | D87: bu
B89: =IF('Total Costs'!D8='Total Costs'!G17,"Pilot in Command (PIC) Cost","Pilot in Command (PIC) Income") -> Pilot in Command (PIC) Income | C89: =SUM(G58:G62,G64)*C47 -> 66053.25 | E89: =IF(C5="Enabled",F66,"") -> 
B90: Pilot in Command (PIC) ($/Flight) | C90: =C89/C48 -> 23.25 | D90: /flight
B92: Total Cost (UAS & Chemical) | C92: =C83*C45 -> 136574.329
B95: Desired Total UAS Cost of Application Per Acre | C95: 12 | D95: /acre

Sheet Chemicals6
B3: Sheet Description
B5: Sheet Status | C5: =Directory!E22 -> Disabled | D5: =IF(C3="Disabled","**To Activate Go to Directory Tab**","") -> 
B6: Chemical 1 Name | C6: =Directory!B22 -> Fungicide
B9: Chemical & Drone Information | H9: oz Chem. Per Acre | J9: oz
H10: pt Chem. Per Acre | J10: pt
B11: Chemical Information | H11: qt Chem. Per Acre | J11: qt
B12: Chemical Cost | C12: 489.98 | D12: per | E12: 2.5 | F12: gal | J12: gal
B13: Chemical Cost per Gallon | C13: =C12/IF(F12="oz",CONVERT(E12,"oz","gal"),IF(F12="pt",CONVERT(E12,"us_pt","gal"),IF(F12="qt",CONVERT(E12,"qt","gal"),E12))) -> 195.992 | D13: /gal
B14: Carrier Cost per Gallon | C14: 0.007 | D14: /gal
B15: Chemical Application Rate | C15: 13.7 | D15: oz Chem. Per Acre
G16: =IF(D15="oz Chem. Per Acre",CONVERT($C$15,"oz","gal")*$C$13+$C$14*($C$18-CONVERT($C$15,"oz","gal")),IF(D15="pt Chem. Per Acre",CONVERT($C$15,"us_pt","gal")*$C$13+$C$14*($C$18-CONVERT($C$15,"us_pt","gal")),CONVERT($C$15,"qt","gal")*$C$13+$C$14*($C$18-CONVERT($C$15,"qt","gal")))) -> 20.99751953
B17: Spray Volume = (Chemical + Carrier) | C17: Imperial Units | E17: Metric Units | G17: =IF(D15="oz Chem. Per Acre",-CONVERT($C$15,"oz","gal")+$C$18,IF(D15="pt Chem. Per Acre",-CONVERT(C15,"us_pt","gal")+C18,-CONVERT(C15,"qt","gal")+C18)) -> 2.89296875
B18: Spray Volume Per Acre | C18: 3 | D18: gal/acre | E18: =CONVERT(C18,"gal","l") -> 11.35623535 | F18: L/acre | G18: =IF(G17>=0,"","CHECK UNITS") -> 
B19: Cost Per Spray Volume | C19: =G16/C18 -> 6.999173177 | D19: /gal | E19: =C19/CONVERT(1,"gal","l") -> 1.848985943 | F19: /L
B21: Drone Sprayer Specifications
B22: Spray Tank Volume | C22: 2.64 | D22: gal | E22: =CONVERT(C22,"gal","l") -> 9.99348711 | F22: L
B23: Max. Operating Speed for Spraying | C23: 15.66 | D23: mph | E23: =CONVERT(C23,"mph","m/sec") -> 7.0006464 | F23: m/s
B24: Effective Spray Width | C24: 16.4 | D24: ft | E24: =CONVERT(C24,"ft","m") -> 4.99872 | F24: m
B25: Max. Flow Rate | C25: 1.32 | D25: gal/min | E25: =CONVERT(C25,"gal","l") -> 4.996743555 | F25: L/min
B26: Max. Flight Time | C26: 15 | D26: min | E26: =C26 -> 15 | F26: min
B27: Sprayer Application Time | C27: 13 | D27: min | E27: =C27 -> 13 | F27: min
B29: Calculated Flow Rate Required at Max. Operating Speed | C29: =CONVERT(E29,"l","gal") -> 1.556507715 | D29: gal/min | E29: =$E$18*E23*60*$E$24/4046.86 -> 5.892022646 | F29: L/min | G29: =IF(E29>E25,"Too High","") -> Too High
B30: Calculated Speed Required at Max. Operating Flow Rate | C30: =CONVERT(E30,"m/sec","mph") -> 13.28049955 | D30: mph | E30: =E25/E18*4046.86/E24/60 -> 5.936914517 | F30: m/s
B32: SET Actual Operating Speed | C32: =CONVERT(E32,"m/sec","mph") -> 13.28049955 | D32: mph | E32: =IF(E30<E23,E30,E23) -> 5.936914517 | F32: m/s
B33: Flow Rate at Actual Operating Speed | C33: =CONVERT(E33,"l","gal") -> 1.32 | D33: gal/min | E33: =$E$18*E32*60*$E$24/4046.86 -> 4.996743555 | F33: L/min
B35: Full Load
B36: Operational Flight Time Required to Empty Tank Completely | C36: =E22/E33 -> 2 | D36: min | E36: =C36 -> 2 | F36: min | G36: =IF(C36>E27,"* Partial Load",IF(AND(C36<=E27,C36>=E27*0.8),"*Watch Time","* Good Time")) -> * Good Time
B37: Acres Sprayed Per Flight | C37: =C36*E32*60*E24/4046.86 -> 0.88 | D37: acre | E37: =C37 -> 0.88 | F37: acre
B39: Partial Load
B40: Application Amount | C40: =CONVERT(E40,"l","gal") -> 17.16 | D40: gal | E40: =E27*E33 -> 64.95766621 | F40: L
B41: Acres Covered Per Flight | C41: =E41 -> 5.72 | D41: acre | E41: =E27*E32*60*E24/4046.86 -> 5.72 | F41: acre
B43: Flight Information
B45: Total Acres Sprayed | C45: 2500 | D45: acres | G45: =IF(C5="Enabled",C45,"") -> 
B46: Number of Drones Available | C46: ='Equipment Ownership'!C6 -> 3 | D46: drones
B47: Number of Drones Used | C47: 3 | D47: drones
B48: Total Number of Flights | C48: =ROUNDUP(IF(G36="* Partial Load",C45/E41,C45/(C37)),0) -> 2841 | D48: flights | G48: =IF(C5="Enabled",C48,"") -> 
B51: Personnel Information
B53: Overall Labor Cost | C53: 450 | D53: /hour
E55: =IF(C47>1,"Assumes Simulataneous UAS Spraying","") -> Assumes Simulataneous UAS Spraying
B56: Personnel Responsibilities | C56: Time Allocated Per Flight (Minutes) | D56: Labor Cost ($/hr) | E56: Total Time (Hours) | F56: Annual Cost | G56: Annual Cost Per UAS | H56: Cost Per Flight
B58: Flight Planning & Setup | C58: 0.1 | D58: =$C$53 -> 450 | E58: =C58*$C$48/60/$C$47 -> 1.578333333 | F58: =(D58*C58/60)*$C$48 -> 2130.75 | G58: =(D58*C58/60)*$C$48/$C$47 -> 710.25 | H58: =G58/($C$48/$C$47) -> 0.75
B59: Ferrying | C59: 0.5 | D59: 450 | E59: 7.891666667 | F59: 10653.75 | G59: =D59*C59/60*$C$48/$C$47 -> 3551.25 | H59: =G59/($C$48/$C$47) -> 3.75
B60: Actual UAS Spraying Time | C60: =IF(G36="* Partial Load",E27,Chemicals6!C36) -> 2 | D60: 450 | E60: 31.56666667 | F60: 42615 | G60: 14205 | H60: 15
B61: Time Spent Between Flights | C61: 0.5 | D61: 450 | E61: 7.891666667 | F61: 10653.75 | G61: 3551.25 | H61: 3.75
B62: Post-Processing | C62: 0 | D62: 450 | E62: 0 | F62: 0 | G62: 0 | H62: 0
B63: Visual Observer | C63: =SUM(C58:C61) -> 3.1 | D63: 20 | E63: 48.92833333 | F63: 2935.7 | G63: 978.5666667 | H63: 1.033333333
B64: Other | C64: 0 | D64: 450 | E64: 0 | F64: 0 | G64: 0 | H64: 0
B66: Personnel Total Cost | F66: =SUM(F58:F64) -> 68988.95 | G66: =SUM(G58:G64) -> 22996.31667 | H66: =SUM(H58:H64) -> 24.28333333
B68: Total Man Hours | E68: =SUM(E58:E64) -> 97.85666667
B69: Pilot in Command (PIC) Hours | E69: =SUM(E58:E62,E64) -> 48.92833333
B70: Pilot in Command (PIC) Weeks (40 hrs) | E70: =E69/40 -> 1.223208333
B71: Acres/Hour PIC | E71: =C45/E69 -> 51.09513915
B73: Economic Considerations
B75: Cost Per Flight
B76: Total UAS Cost of Application Per Flight | C76: =('Total Costs'!E23)+H66 -> 29.59634662 | D76: /flight
B77: Total Chemical Cost Per Flight | C77: =E22*E19 -> 18.47781719 | D77: /flight
B78: Total Cost (UAS & Chemical) Per Flight | C78: =SUM(C76:C77) -> 48.07416381 | D78: /flight
B80: Cost Per Acre
B81: Total UAS Cost of Application Per Acre | C81: =IF($G$36="* Partial Load",$C$76/$E$41,$C$76/$C$37) -> 33.63221207 | D81: /acre
B82: Total Chemical Cost Per Acre | C82: =E19*E18 -> 20.99751953 | D82: /acre
B83: Total Cost (UAS & Chemical) Per Acre | C83: =SUM(C81:C82) -> 54.6297316 | D83: /acre
B86: $/bu for Crop | C86: 10 | D86: /bu
B87: Breakeven Increase in Yield Bu/Acre Required | C87: =C83/C86 -> 5.46297316 | D87: bu
B89: =IF('Total Costs'!D8='Total Costs'!G17,"Pilot in Command (PIC) Cost","Pilot in Command (PIC) Income") -> Pilot in Command (PIC) Income | C89: =SUM(G58:G62,G64)*C47 -> 66053.25 | E89: =IF(C5="Enabled",F66,"") -> 
B90: Pilot in Command (PIC) ($/Flight) | C90: =C89/C48 -> 23.25 | D90: /flight
B92: Total Cost (UAS & Chemical) | C92: =C83*C45 -> 136574.329
B95: Desired Total UAS Cost of Application Per Acre | C95: 12 | D95: /acre

Sheet Chemicals7
B3: Sheet Description
B5: Sheet Status | C5: =Directory!E23 -> Disabled | D5: =IF(C3="Disabled","**To Activate Go to Directory Tab**","") -> 
B6: Chemical 1 Name | C6: =Directory!B23 -> Pesticide
B9: Chemical & Drone Information | H9: oz Chem. Per Acre | J9: oz
H10: pt Chem. Per Acre | J10: pt
B11: Chemical Information | H11: qt Chem. Per Acre | J11: qt
B12: Chemical Cost | C12: 489.98 | D12: per | E12: 2.5 | F12: gal | J12: gal
B13: Chemical Cost per Gallon | C13: =C12/IF(F12="oz",CONVERT(E12,"oz","gal"),IF(F12="pt",CONVERT(E12,"us_pt","gal"),IF(F12="qt",CONVERT(E12,"qt","gal"),E12))) -> 195.992 | D13: /gal
B14: Carrier Cost per Gallon | C14: 0.007 | D14: /gal
B15: Chemical Application Rate | C15: 13.7 | D15: oz Chem. Per Acre
G16: =IF(D15="oz Chem. Per Acre",CONVERT($C$15,"oz","gal")*$C$13+$C$14*($C$18-CONVERT($C$15,"oz","gal")),IF(D15="pt Chem. Per Acre",CONVERT($C$15,"us_pt","gal")*$C$13+$C$14*($C$18-CONVERT($C$15,"us_pt","gal")),CONVERT($C$15,"qt","gal")*$C$13+$C$14*($C$18-CONVERT($C$15,"qt","gal")))) -> 20.99751953
B17: Spray Volume = (Chemical + Carrier) | C17: Imperial Units | E17: Metric Units | G17: =IF(D15="oz Chem. Per Acre",-CONVERT($C$15,"oz","gal")+$C$18,IF(D15="pt Chem. Per Acre",-CONVERT(C15,"us_pt","gal")+C18,-CONVERT(C15,"qt","gal")+C18)) -> 2.89296875
B18: Spray Volume Per Acre | C18: 3 | D18: gal/acre | E18: =CONVERT(C18,"gal","l") -> 11.35623535 | F18: L/acre | G18: =IF(G17>=0,"","CHECK UNITS") -> 
B19: Cost Per Spray Volume | C19: =G16/C18 -> 6.999173177 | D19: /gal | E19: =C19/CONVERT(1,"gal","l") -> 1.848985943 | F19: /L
B21: Drone Sprayer Specifications
B22: Spray Tank Volume | C22: 2.64 | D22: gal | E22: =CONVERT(C22,"gal","l") -> 9.99348711 | F22: L
B23: Max. Operating Speed for Spraying | C23: 15.66 | D23: mph | E23: =CONVERT(C23,"mph","m/sec") -> 7.0006464 | F23: m/s
B24: Effective Spray Width | C24: 16.4 | D24: ft | E24: =CONVERT(C24,"ft","m") -> 4.99872 | F24: m
B25: Max. Flow Rate | C25: 1.32 | D25: gal/min | E25: =CONVERT(C25,"gal","l") -> 4.996743555 | F25: L/min
B26: Max. Flight Time | C26: 15 | D26: min | E26: =C26 -> 15 | F26: min
B27: Sprayer Application Time | C27: 13 | D27: min | E27: =C27 -> 13 | F27: min
B29: Calculated Flow Rate Required at Max. Operating Speed | C29: =CONVERT(E29,"l","gal") -> 1.556507715 | D29: gal/min | E29: =$E$18*E23*60*$E$24/4046.86 -> 5.892022646 | F29: L/min | G29: =IF(E29>E25,"Too High","") -> Too High
B30: Calculated Speed Required at Max. Operating Flow Rate | C30: =CONVERT(E30,"m/sec","mph") -> 13.28049955 | D30: mph | E30: =E25/E18*4046.86/E24/60 -> 5.936914517 | F30: m/s
B32: SET Actual Operating Speed | C32: =CONVERT(E32,"m/sec","mph") -> 13.28049955 | D32: mph | E32: =IF(E30<E23,E30,E23) -> 5.936914517 | F32: m/s
B33: Flow Rate at Actual Operating Speed | C33: =CONVERT(E33,"l","gal") -> 1.32 | D33: gal/min | E33: =$E$18*E32*60*$E$24/4046.86 -> 4.996743555 | F33: L/min
B35: Full Load
B36: Operational Flight Time Required to Empty Tank Completely | C36: =E22/E33 -> 2 | D36: min | E36: =C36 -> 2 | F36: min | G36: =IF(C36>E27,"* Partial Load",IF(AND(C36<=E27,C36>=E27*0.8),"*Watch Time","* Good Time")) -> * Good Time
B37: Acres Sprayed Per Flight | C37: =C36*E32*60*E24/4046.86 -> 0.88 | D37: acre | E37: =C37 -> 0.88 | F37: acre
B39: Partial Load
B40: Application Amount | C40: =CONVERT(E40,"l","gal") -> 17.16 | D40: gal | E40: =E27*E33 -> 64.95766621 | F40: L
B41: Acres Covered Per Flight | C41: =E41 -> 5.72 | D41: acre | E41: =E27*E32*60*E24/4046.86 -> 5.72 | F41: acre
B43: Flight Information
B45: Total Acres Sprayed | C45: 2500 | D45: acres | G45: =IF(C5="Enabled",C45,"") -> 
B46: Number of Drones Available | C46: ='Equipment Ownership'!C6 -> 3 | D46: drones
B47: Number of Drones Used | C47: 3 | D47: drones
B48: Total Number of Flights | C48: =ROUNDUP(IF(G36="* Partial Load",C45/E41,C45/(C37)),0) -> 2841 | D48: flights | G48: =IF(C5="Enabled",C48,"") -> 
B51: Personnel Information
B53: Overall Labor Cost | C53: 450 | D53: /hour
E55: =IF(C47>1,"Assumes Simulataneous UAS Spraying","") -> Assumes Simulataneous UAS Spraying
B56: Personnel Responsibilities | C56: Time Allocated Per Flight (Minutes) | D56: Labor Cost ($/hr) | E56: Total Time (Hours) | F56: Annual Cost | G56: Annual Cost Per UAS | H56: Cost Per Flight
B58: Flight Planning & Setup | C58: 0.1 | D58: =$C$53 -> 450 | E58: =C58*$C$48/60/$C$47 -> 1.578333333 | F58: =(D58*C58/60)*$C$48 -> 2130.75 | G58: =(D58*C58/60)*$C$48/$C$47 -> 710.25 | H58: =G58/($C$48/$C$47) -> 0.75
B59: Ferrying | C59: 0.5 | D59: 450 | E59: 7.891666667 | F59: 10653.75 | G59: =D59*C59/60*$C$48/$C$47 -> 3551.25 | H59: =G59/($C$48/$C$47) -> 3.75
B60: Actual UAS Spraying Time | C60: =IF(G36="* Partial Load",E27,Chemicals7!C36) -> 2 | D60: 450 | E60: 31.56666667 | F60: 42615 | G60: 14205 | H60: 15
B61: Time Spent Between Flights | C61: 0.5 | D61: 450 | E61: 7.891666667 | F61: 10653.75 | G61: 3551.25 | H61: 3.75
B62: Post-Processing | C62: 0 | D62: 450 | E62: 0 | F62: 0 | G62: 0 | H62: 0
B63: Visual Observer | C63: =SUM(C58:C61) -> 3.1 | D63: 20 | E63: 48.92833333 | F63: 2935.7 | G63: 978.5666667 | H63: 1.033333333
B64: Other | C64: 0 | D64: 450 | E64: 0 | F64: 0 | G64: 0 | H64: 0
B66: Personnel Total Cost | F66: =SUM(F58:F64) -> 68988.95 | G66: =SUM(G58:G64) -> 22996.31667 | H66: =SUM(H58:H64) -> 24.28333333
B68: Total Man Hours | E68: =SUM(E58:E64) -> 97.85666667
B69: Pilot in Command (PIC) Hours | E69: =SUM(E58:E62,E64) -> 48.92833333
B70: Pilot in Command (PIC) Weeks (40 hrs) | E70: =E69/40 -> 1.223208333
B71: Acres/Hour PIC | E71: =C45/E69 -> 51.09513915
B73: Economic Considerations
B75: Cost Per Flight
B76: Total UAS Cost of Application Per Flight | C76: =('Total Costs'!E23)+H66 -> 29.59634662 | D76: /flight
B77: Total Chemical Cost Per Flight | C77: =E22*E19 -> 18.47781719 | D77: /flight
B78: Total Cost (UAS & Chemical) Per Flight | C78: =SUM(C76:C77) -> 48.07416381 | D78: /flight
B80: Cost Per Acre
B81: Total UAS Cost of Application Per Acre | C81: =IF($G$36="* Partial Load",$C$76/$E$41,$C$76/$C$37) -> 33.63221207 | D81: /acre
B82: Total Chemical Cost Per Acre | C82: =E19*E18 -> 20.99751953 | D82: /acre
B83: Total Cost (UAS & Chemical) Per Acre | C83: =SUM(C81:C82) -> 54.6297316 | D83: /acre
B86: $/bu for Crop | C86: 10 | D86: /bu
B87: Breakeven Increase in Yield Bu/Acre Required | C87: =C83/C86 -> 5.46297316 | D87: bu
B89: =IF('Total Costs'!D8='Total Costs'!G17,"Pilot in Command (PIC) Cost","Pilot in Command (PIC) Income") -> Pilot in Command (PIC) Income | C89: =SUM(G58:G62,G64)*C47 -> 66053.25 | E89: =IF(C5="Enabled",F66,"") -> 
B90: Pilot in Command (PIC) ($/Flight) | C90: =C89/C48 -> 23.25 | D90: /flight
B92: Total Cost (UAS & Chemical) | C92: =C83*C45 -> 136574.329
B95: Desired Total UAS Cost of Application Per Acre | C95: 12 | D95: /acre

Sheet Chemicals8
B3: Sheet Description
B5: Sheet Status | C5: =Directory!E24 -> Disabled | D5: =IF(C3="Disabled","**To Activate Go to Directory Tab**","") -> 
B6: Chemical 1 Name | C6: =Directory!B24 -> Herbicide
B9: Chemical & Drone Information | H9: oz Chem. Per Acre | J9: oz
H10: pt Chem. Per Acre | J10: pt
B11: Chemical Information | H11: qt Chem. Per Acre | J11: qt
B12: Chemical Cost | C12: 489.98 | D12: per | E12: 2.5 | F12: gal | J12: gal
B13: Chemical Cost per Gallon | C13: =C12/IF(F12="oz",CONVERT(E12,"oz","gal"),IF(F12="pt",CONVERT(E12,"us_pt","gal"),IF(F12="qt",CONVERT(E12,"qt","gal"),E12))) -> 195.992 | D13: /gal
B14: Carrier Cost per Gallon | C14: 0.007 | D14: /gal
B15: Chemical Application Rate | C15: 13.7 | D15: oz Chem. Per Acre
G16: =IF(D15="oz Chem. Per Acre",CONVERT($C$15,"oz","gal")*$C$13+$C$14*($C$18-CONVERT($C$15,"oz","gal")),IF(D15="pt Chem. Per Acre",CONVERT($C$15,"us_pt","gal")*$C$13+$C$14*($C$18-CONVERT($C$15,"us_pt","gal")),CONVERT($C$15,"qt","gal")*$C$13+$C$14*($C$18-CONVERT($C$15,"qt","gal")))) -> 20.99751953
B17: Spray Volume = (Chemical + Carrier) | C17: Imperial Units | E17: Metric Units | G17: =IF(D15="oz Chem. Per Acre",-CONVERT($C$15,"oz","gal")+$C$18,IF(D15="pt Chem. Per Acre",-CONVERT(C15,"us_pt","gal")+C18,-CONVERT(C15,"qt","gal")+C18)) -> 2.89296875
B18: Spray Volume Per Acre | C18: 3 | D18: gal/acre | E18: =CONVERT(C18,"gal","l") -> 11.35623535 | F18: L/acre | G18: =IF(G17>=0,"","CHECK UNITS") -> 
B19: Cost Per Spray Volume | C19: =G16/C18 -> 6.999173177 | D19: /gal | E19: =C19/CONVERT(1,"gal","l") -> 1.848985943 | F19: /L
B21: Drone Sprayer Specifications
B22: Spray Tank Volume | C22: 2.64 | D22: gal | E22: =CONVERT(C22,"gal","l") -> 9.99348711 | F22: L
B23: Max. Operating Speed for Spraying | C23: 15.66 | D23: mph | E23: =CONVERT(C23,"mph","m/sec") -> 7.0006464 | F23: m/s
B24: Effective Spray Width | C24: 16.4 | D24: ft | E24: =CONVERT(C24,"ft","m") -> 4.99872 | F24: m
B25: Max. Flow Rate | C25: 1.32 | D25: gal/min | E25: =CONVERT(C25,"gal","l") -> 4.996743555 | F25: L/min
B26: Max. Flight Time | C26: 15 | D26: min | E26: =C26 -> 15 | F26: min
B27: Sprayer Application Time | C27: 13 | D27: min | E27: =C27 -> 13 | F27: min
B29: Calculated Flow Rate Required at Max. Operating Speed | C29: =CONVERT(E29,"l","gal") -> 1.556507715 | D29: gal/min | E29: =$E$18*E23*60*$E$24/4046.86 -> 5.892022646 | F29: L/min | G29: =IF(E29>E25,"Too High","") -> Too High
B30: Calculated Speed Required at Max. Operating Flow Rate | C30: =CONVERT(E30,"m/sec","mph") -> 13.28049955 | D30: mph | E30: =E25/E18*4046.86/E24/60 -> 5.936914517 | F30: m/s
B32: SET Actual Operating Speed | C32: =CONVERT(E32,"m/sec","mph") -> 13.28049955 | D32: mph | E32: =IF(E30<E23,E30,E23) -> 5.936914517 | F32: m/s
B33: Flow Rate at Actual Operating Speed | C33: =CONVERT(E33,"l","gal") -> 1.32 | D33: gal/min | E33: =$E$18*E32*60*$E$24/4046.86 -> 4.996743555 | F33: L/min
B35: Full Load
B36: Operational Flight Time Required to Empty Tank Completely | C36: =E22/E33 -> 2 | D36: min | E36: =C36 -> 2 | F36: min | G36: =IF(C36>E27,"* Partial Load",IF(AND(C36<=E27,C36>=E27*0.8),"*Watch Time","* Good Time")) -> * Good Time
B37: Acres Sprayed Per Flight | C37: =C36*E32*60*E24/4046.86 -> 0.88 | D37: acre | E37: =C37 -> 0.88 | F37: acre
B39: Partial Load
B40: Application Amount | C40: =CONVERT(E40,"l","gal") -> 17.16 | D40: gal | E40: =E27*E33 -> 64.95766621 | F40: L
B41: Acres Covered Per Flight | C41: =E41 -> 5.72 | D41: acre | E41: =E27*E32*60*E24/4046.86 -> 5.72 | F41: acre
B43: Flight Information
B45: Total Acres Sprayed | C45: 2500 | D45: acres | G45: =IF(C5="Enabled",C45,"") -> 
B46: Number of Drones Available | C46: ='Equipment Ownership'!C6 -> 3 | D46: drones
B47: Number of Drones Used | C47: 3 | D47: drones
B48: Total Number of Flights | C48: =ROUNDUP(IF(G36="* Partial Load",C45/E41,C45/(C37)),0) -> 2841 | D48: flights | G48: =IF(C5="Enabled",C48,"") -> 
B51: Personnel Information
B53: Overall Labor Cost | C53: 450 | D53: /hour
E55: =IF(C47>1,"Assumes Simulataneous UAS Spraying","") -> Assumes Simulataneous UAS Spraying
B56: Personnel Responsibilities | C56: Time Allocated Per Flight (Minutes) | D56: Labor Cost ($/hr) | E56: Total Time (Hours) | F56: Annual Cost | G56: Annual Cost Per UAS | H56: Cost Per Flight
B58: Flight Planning & Setup | C58: 0.1 | D58: =$C$53 -> 450 | E58: =C58*$C$48/60/$C$47 -> 1.578333333 | F58: =(D58*C58/60)*$C$48 -> 2130.75 | G58: =(D58*C58/60)*$C$48/$C$47 -> 710.25 | H58: =G58/($C$48/$C$47) -> 0.75
B59: Ferrying | C59: 0.5 | D59: 450 | E59: 7.891666667 | F59: 10653.75 | G59: =D59*C59/60*$C$48/$C$47 -> 3551.25 | H59: =G59/($C$48/$C$47) -> 3.75
B60: Actual UAS Spraying Time | C60: =IF(G36="* Partial Load",E27,Chemicals8!C36) -> 2 | D60: 450 | E60: 31.56666667 | F60: 42615 | G60: 14205 | H60: 15
B61: Time Spent Between Flights | C61: 0.5 | D61: 450 | E61: 7.891666667 | F61: 10653.75 | G61: 3551.25 | H61: 3.75
B62: Post-Processing | C62: 0 | D62: 450 | E62: 0 | F62: 0 | G62: 0 | H62: 0
B63: Visual Observer | C63: =SUM(C58:C61) -> 3.1 | D63: 20 | E63: 48.92833333 | F63: 2935.7 | G63: 978.5666667 | H63: 1.033333333
B64: Other | C64: 0 | D64: 450 | E64: 0 | F64: 0 | G64: 0 | H64: 0
B66: Personnel Total Cost | F66: =SUM(F58:F64) -> 68988.95 | G66: =SUM(G58:G64) -> 22996.31667 | H66: =SUM(H58:H64) -> 24.28333333
B68: Total Man Hours | E68: =SUM(E58:E64) -> 97.85666667
B69: Pilot in Command (PIC) Hours | E69: =SUM(E58:E62,E64) -> 48.92833333
B70: Pilot in Command (PIC) Weeks (40 hrs) | E70: =E69/40 -> 1.223208333
B71: Acres/Hour PIC | E71: =C45/E69 -> 51.09513915
B73: Economic Considerations
B75: Cost Per Flight
B76: Total UAS Cost of Application Per Flight | C76: =('Total Costs'!E23)+H66 -> 29.59634662 | D76: /flight
B77: Total Chemical Cost Per Flight | C77: =E22*E19 -> 18.47781719 | D77: /flight
B78: Total Cost (UAS & Chemical) Per Flight | C78: =SUM(C76:C77) -> 48.07416381 | D78: /flight
B80: Cost Per Acre
B81: Total UAS Cost of Application Per Acre | C81: =IF($G$36="* Partial Load",$C$76/$E$41,$C$76/$C$37) -> 33.63221207 | D81: /acre
B82: Total Chemical Cost Per Acre | C82: =E19*E18 -> 20.99751953 | D82: /acre
B83: Total Cost (UAS & Chemical) Per Acre | C83: =SUM(C81:C82) -> 54.6297316 | D83: /acre
B86: $/bu for Crop | C86: 10 | D86: /bu
B87: Breakeven Increase in Yield Bu/Acre Required | C87: =C83/C86 -> 5.46297316 | D87: bu
B89: =IF('Total Costs'!D8='Total Costs'!G17,"Pilot in Command (PIC) Cost","Pilot in Command (PIC) Income") -> Pilot in Command (PIC) Income | C89: =SUM(G58:G62,G64)*C47 -> 66053.25 | E89: =IF(C5="Enabled",F66,"") -> 
B90: Pilot in Command (PIC) ($/Flight) | C90: =C89/C48 -> 23.25 | D90: /flight
B92: Total Cost (UAS & Chemical) | C92: =C83*C45 -> 136574.329
B95: Desired Total UAS Cost of Application Per Acre | C95: 12 | D95: /acre

Sheet Chemicals9
B3: Sheet Description
B5: Sheet Status | C5: =Directory!E25 -> Disabled | D5: =IF(C3="Disabled","**To Activate Go to Directory Tab**","") -> 
B6: Chemical 1 Name | C6: =Directory!B25 -> Fungicide
B9: Chemical & Drone Information | H9: oz Chem. Per Acre | J9: oz
H10: pt Chem. Per Acre | J10: pt
B11: Chemical Information | H11: qt Chem. Per Acre | J11: qt
B12: Chemical Cost | C12: 489.98 | D12: per | E12: 2.5 | F12: gal | J12: gal
B13: Chemical Cost per Gallon | C13: =C12/IF(F12="oz",CONVERT(E12,"oz","gal"),IF(F12="pt",CONVERT(E12,"us_pt","gal"),IF(F12="qt",CONVERT(E12,"qt","gal"),E12))) -> 195.992 | D13: /gal
B14: Carrier Cost per Gallon | C14: 0.007 | D14: /gal
B15: Chemical Application Rate | C15: 13.7 | D15: oz Chem. Per Acre
G16: =IF(D15="oz Chem. Per Acre",CONVERT($C$15,"oz","gal")*$C$13+$C$14*($C$18-CONVERT($C$15,"oz","gal")),IF(D15="pt Chem. Per Acre",CONVERT($C$15,"us_pt","gal")*$C$13+$C$14*($C$18-CONVERT($C$15,"us_pt","gal")),CONVERT($C$15,"qt","gal")*$C$13+$C$14*($C$18-CONVERT($C$15,"qt","gal")))) -> 20.99751953
B17: Spray Volume = (Chemical + Carrier) | C17: Imperial Units | E17: Metric Units | G17: =IF(D15="oz Chem. Per Acre",-CONVERT($C$15,"oz","gal")+$C$18,IF(D15="pt Chem. Per Acre",-CONVERT(C15,"us_pt","gal")+C18,-CONVERT(C15,"qt","gal")+C18)) -> 2.89296875
B18: Spray Volume Per Acre | C18: 3 | D18: gal/acre | E18: =CONVERT(C18,"gal","l") -> 11.35623535 | F18: L/acre | G18: =IF(G17>=0,"","CHECK UNITS") -> 
B19: Cost Per Spray Volume | C19: =G16/C18 -> 6.999173177 | D19: /gal | E19: =C19/CONVERT(1,"gal","l") -> 1.848985943 | F19: /L
B21: Drone Sprayer Specifications
B22: Spray Tank Volume | C22: 2.64 | D22: gal | E22: =CONVERT(C22,"gal","l") -> 9.99348711 | F22: L
B23: Max. Operating Speed for Spraying | C23: 15.66 | D23: mph | E23: =CONVERT(C23,"mph","m/sec") -> 7.0006464 | F23: m/s
B24: Effective Spray Width | C24: 16.4 | D24: ft | E24: =CONVERT(C24,"ft","m") -> 4.99872 | F24: m
B25: Max. Flow Rate | C25: 1.32 | D25: gal/min | E25: =CONVERT(C25,"gal","l") -> 4.996743555 | F25: L/min
B26: Max. Flight Time | C26: 15 | D26: min | E26: =C26 -> 15 | F26: min
B27: Sprayer Application Time | C27: 13 | D27: min | E27: =C27 -> 13 | F27: min
B29: Calculated Flow Rate Required at Max. Operating Speed | C29: =CONVERT(E29,"l","gal") -> 1.556507715 | D29: gal/min | E29: =$E$18*E23*60*$E$24/4046.86 -> 5.892022646 | F29: L/min | G29: =IF(E29>E25,"Too High","") -> Too High
B30: Calculated Speed Required at Max. Operating Flow Rate | C30: =CONVERT(E30,"m/sec","mph") -> 13.28049955 | D30: mph | E30: =E25/E18*4046.86/E24/60 -> 5.936914517 | F30: m/s
B32: SET Actual Operating Speed | C32: =CONVERT(E32,"m/sec","mph") -> 13.28049955 | D32: mph | E32: =IF(E30<E23,E30,E23) -> 5.936914517 | F32: m/s
B33: Flow Rate at Actual Operating Speed | C33: =CONVERT(E33,"l","gal") -> 1.32 | D33: gal/min | E33: =$E$18*E32*60*$E$24/4046.86 -> 4.996743555 | F33: L/min
B35: Full Load
B36: Operational Flight Time Required to Empty Tank Completely | C36: =E22/E33 -> 2 | D36: min | E36: =C36 -> 2 | F36: min | G36: =IF(C36>E27,"* Partial Load",IF(AND(C36<=E27,C36>=E27*0.8),"*Watch Time","* Good Time")) -> * Good Time
B37: Acres Sprayed Per Flight | C37: =C36*E32*60*E24/4046.86 -> 0.88 | D37: acre | E37: =C37 -> 0.88 | F37: acre
B39: Partial Load
B40: Application Amount | C40: =CONVERT(E40,"l","gal") -> 17.16 | D40: gal | E40: =E27*E33 -> 64.95766621 | F40: L
B41: Acres Covered Per Flight | C41: =E41 -> 5.72 | D41: acre | E41: =E27*E32*60*E24/4046.86 -> 5.72 | F41: acre
B43: Flight Information
B45: Total Acres Sprayed | C45: 2500 | D45: acres | G45: =IF(C5="Enabled",C45,"") -> 
B46: Number of Drones Available | C46: ='Equipment Ownership'!C6 -> 3 | D46: drones
B47: Number of Drones Used | C47: 3 | D47: drones
B48: Total Number of Flights | C48: =ROUNDUP(IF(G36="* Partial Load",C45/E41,C45/(C37)),0) -> 2841 | D48: flights | G48: =IF(C5="Enabled",C48,"") -> 
B51: Personnel Information
B53: Overall Labor Cost | C53: 450 | D53: /hour
E55: =IF(C47>1,"Assumes Simulataneous UAS Spraying","") -> Assumes Simulataneous UAS Spraying
B56: Personnel Responsibilities | C56: Time Allocated Per Flight (Minutes) | D56: Labor Cost ($/hr) | E56: Total Time (Hours) | F56: Annual Cost | G56: Annual Cost Per UAS | H56: Cost Per Flight
B58: Flight Planning & Setup | C58: 0.1 | D58: =$C$53 -> 450 | E58: =C58*$C$48/60/$C$47 -> 1.578333333 | F58: =(D58*C58/60)*$C$48 -> 2130.75 | G58: =(D58*C58/60)*$C$48/$C$47 -> 710.25 | H58: =G58/($C$48/$C$47) -> 0.75
B59: Ferrying | C59: 0.5 | D59: 450 | E59: 7.891666667 | F59: 10653.75 | G59: =D59*C59/60*$C$48/$C$47 -> 3551.25 | H59: =G59/($C$48/$C$47) -> 3.75
B60: Actual UAS Spraying Time | C60: =IF(G36="* Partial Load",E27,Chemicals9!C36) -> 2 | D60: 450 | E60: 31.56666667 | F60: 42615 | G60: 14205 | H60: 15
B61: Time Spent Between Flights | C61: 0.5 | D61: 450 | E61: 7.891666667 | F61: 10653.75 | G61: 3551.25 | H61: 3.75
B62: Post-Processing | C62: 0 | D62: 450 | E62: 0 | F62: 0 | G62: 0 | H62: 0
B63: Visual Observer | C63: =SUM(C58:C61) -> 3.1 | D63: 20 | E63: 48.92833333 | F63: 2935.7 | G63: 978.5666667 | H63: 1.033333333
B64: Other | C64: 0 | D64: 450 | E64: 0 | F64: 0 | G64: 0 | H64: 0
B66: Personnel Total Cost | F66: =SUM(F58:F64) -> 68988.95 | G66: =SUM(G58:G64) -> 22996.31667 | H66: =SUM(H58:H64) -> 24.28333333
B68: Total Man Hours | E68: =SUM(E58:E64) -> 97.85666667
B69: Pilot in Command (PIC) Hours | E69: =SUM(E58:E62,E64) -> 48.92833333
B70: Pilot in Command (PIC) Weeks (40 hrs) | E70: =E69/40 -> 1.223208333
B71: Acres/Hour PIC | E71: =C45/E69 -> 51.09513915
B73: Economic Considerations
B75: Cost Per Flight
B76: Total UAS Cost of Application Per Flight | C76: =('Total Costs'!E23)+H66 -> 29.59634662 | D76: /flight
B77: Total Chemical Cost Per Flight | C77: =E22*E19 -> 18.47781719 | D77: /flight
B78: Total Cost (UAS & Chemical) Per Flight | C78: =SUM(C76:C77) -> 48.07416381 | D78: /flight
B80: Cost Per Acre
B81: Total UAS Cost of Application Per Acre | C81: =IF($G$36="* Partial Load",$C$76/$E$41,$C$76/$C$37) -> 33.63221207 | D81: /acre
B82: Total Chemical Cost Per Acre | C82: =E19*E18 -> 20.99751953 | D82: /acre
B83: Total Cost (UAS & Chemical) Per Acre | C83: =SUM(C81:C82) -> 54.6297316 | D83: /acre
B86: $/bu for Crop | C86: 10 | D86: /bu
B87: Breakeven Increase in Yield Bu/Acre Required | C87: =C83/C86 -> 5.46297316 | D87: bu
B89: =IF('Total Costs'!D8='Total Costs'!G17,"Pilot in Command (PIC) Cost","Pilot in Command (PIC) Income") -> Pilot in Command (PIC) Income | C89: =SUM(G58:G62,G64)*C47 -> 66053.25 | E89: =IF(C5="Enabled",F66,"") -> 
B90: Pilot in Command (PIC) ($/Flight) | C90: =C89/C48 -> 23.25 | D90: /flight
B92: Total Cost (UAS & Chemical) | C92: =C83*C45 -> 136574.329
B95: Desired Total UAS Cost of Application Per Acre | C95: 12 | D95: /acre

Sheet Chemicals10
B3: Sheet Description
B5: Sheet Status | C5: =Directory!E26 -> Disabled | D5: =IF(C3="Disabled","**To Activate Go to Directory Tab**","") -> 
B6: Chemical 1 Name | C6: =Directory!B26 -> Pesticide
B9: Chemical & Drone Information | H9: oz Chem. Per Acre | J9: oz
H10: pt Chem. Per Acre | J10: pt
B11: Chemical Information | H11: qt Chem. Per Acre | J11: qt
B12: Chemical Cost | C12: 489.98 | D12: per | E12: 2.5 | F12: gal | J12: gal
B13: Chemical Cost per Gallon | C13: =C12/IF(F12="oz",CONVERT(E12,"oz","gal"),IF(F12="pt",CONVERT(E12,"us_pt","gal"),IF(F12="qt",CONVERT(E12,"qt","gal"),E12))) -> 195.992 | D13: /gal
B14: Carrier Cost per Gallon | C14: 0.007 | D14: /gal
B15: Chemical Application Rate | C15: 13.7 | D15: oz Chem. Per Acre
G16: =IF(D15="oz Chem. Per Acre",CONVERT($C$15,"oz","gal")*$C$13+$C$14*($C$18-CONVERT($C$15,"oz","gal")),IF(D15="pt Chem. Per Acre",CONVERT($C$15,"us_pt","gal")*$C$13+$C$14*($C$18-CONVERT($C$15,"us_pt","gal")),CONVERT($C$15,"qt","gal")*$C$13+$C$14*($C$18-CONVERT($C$15,"qt","gal")))) -> 20.99751953
B17: Spray Volume = (Chemical + Carrier) | C17: Imperial Units | E17: Metric Units | G17: =IF(D15="oz Chem. Per Acre",-CONVERT($C$15,"oz","gal")+$C$18,IF(D15="pt Chem. Per Acre",-CONVERT(C15,"us_pt","gal")+C18,-CONVERT(C15,"qt","gal")+C18)) -> 2.89296875
B18: Spray Volume Per Acre | C18: 3 | D18: gal/acre | E18: =CONVERT(C18,"gal","l") -> 11.35623535 | F18: L/acre | G18: =IF(G17>=0,"","CHECK UNITS") -> 
B19: Cost Per Spray Volume | C19: =G16/C18 -> 6.999173177 | D19: /gal | E19: =C19/CONVERT(1,"gal","l") -> 1.848985943 | F19: /L
B21: Drone Sprayer Specifications
B22: Spray Tank Volume | C22: 2.64 | D22: gal | E22: =CONVERT(C22,"gal","l") -> 9.99348711 | F22: L
B23: Max. Operating Speed for Spraying | C23: 15.66 | D23: mph | E23: =CONVERT(C23,"mph","m/sec") -> 7.0006464 | F23: m/s
B24: Effective Spray Width | C24: 16.4 | D24: ft | E24: =CONVERT(C24,"ft","m") -> 4.99872 | F24: m
B25: Max. Flow Rate | C25: 1.32 | D25: gal/min | E25: =CONVERT(C25,"gal","l") -> 4.996743555 | F25: L/min
B26: Max. Flight Time | C26: 15 | D26: min | E26: =C26 -> 15 | F26: min
B27: Sprayer Application Time | C27: 13 | D27: min | E27: =C27 -> 13 | F27: min
B29: Calculated Flow Rate Required at Max. Operating Speed | C29: =CONVERT(E29,"l","gal") -> 1.556507715 | D29: gal/min | E29: =$E$18*E23*60*$E$24/4046.86 -> 5.892022646 | F29: L/min | G29: =IF(E29>E25,"Too High","") -> Too High
B30: Calculated Speed Required at Max. Operating Flow Rate | C30: =CONVERT(E30,"m/sec","mph") -> 13.28049955 | D30: mph | E30: =E25/E18*4046.86/E24/60 -> 5.936914517 | F30: m/s
B32: SET Actual Operating Speed | C32: =CONVERT(E32,"m/sec","mph") -> 13.28049955 | D32: mph | E32: =IF(E30<E23,E30,E23) -> 5.936914517 | F32: m/s
B33: Flow Rate at Actual Operating Speed | C33: =CONVERT(E33,"l","gal") -> 1.32 | D33: gal/min | E33: =$E$18*E32*60*$E$24/4046.86 -> 4.996743555 | F33: L/min
B35: Full Load
B36: Operational Flight Time Required to Empty Tank Completely | C36: =E22/E33 -> 2 | D36: min | E36: =C36 -> 2 | F36: min | G36: =IF(C36>E27,"* Partial Load",IF(AND(C36<=E27,C36>=E27*0.8),"*Watch Time","* Good Time")) -> * Good Time
B37: Acres Sprayed Per Flight | C37: =C36*E32*60*E24/4046.86 -> 0.88 | D37: acre | E37: =C37 -> 0.88 | F37: acre
B39: Partial Load
B40: Application Amount | C40: =CONVERT(E40,"l","gal") -> 17.16 | D40: gal | E40: =E27*E33 -> 64.95766621 | F40: L
B41: Acres Covered Per Flight | C41: =E41 -> 5.72 | D41: acre | E41: =E27*E32*60*E24/4046.86 -> 5.72 | F41: acre
B43: Flight Information
B45: Total Acres Sprayed | C45: 2500 | D45: acres | G45: =IF(C5="Enabled",C45,"") -> 
B46: Number of Drones Available | C46: ='Equipment Ownership'!C6 -> 3 | D46: drones
B47: Number of Drones Used | C47: 3 | D47: drones
B48: Total Number of Flights | C48: =ROUNDUP(IF(G36="* Partial Load",C45/E41,C45/(C37)),0) -> 2841 | D48: flights | G48: =IF(C5="Enabled",C48,"") -> 
B51: Personnel Information
B53: Overall Labor Cost | C53: 450 | D53: /hour
E55: =IF(C47>1,"Assumes Simulataneous UAS Spraying","") -> Assumes Simulataneous UAS Spraying
B56: Personnel Responsibilities | C56: Time Allocated Per Flight (Minutes) | D56: Labor Cost ($/hr) | E56: Total Time (Hours) | F56: Annual Cost | G56: Annual Cost Per UAS | H56: Cost Per Flight
B58: Flight Planning & Setup | C58: 0.1 | D58: =$C$53 -> 450 | E58: =C58*$C$48/60/$C$47 -> 1.578333333 | F58: =(D58*C58/60)*$C$48 -> 2130.75 | G58: =(D58*C58/60)*$C$48/$C$47 -> 710.25 | H58: =G58/($C$48/$C$47) -> 0.75
B59: Ferrying | C59: 0.5 | D59: 450 | E59: 7.891666667 | F59: 10653.75 | G59: =D59*C59/60*$C$48/$C$47 -> 3551.25 | H59: =G59/($C$48/$C$47) -> 3.75
B60: Actual UAS Spraying Time | C60: =IF(G36="* Partial Load",E27,Chemicals10!C36) -> 2 | D60: 450 | E60: 31.56666667 | F60: 42615 | G60: 14205 | H60: 15
B61: Time Spent Between Flights | C61: 0.5 | D61: 450 | E61: 7.891666667 | F61: 10653.75 | G61: 3551.25 | H61: 3.75
B62: Post-Processing | C62: 0 | D62: 450 | E62: 0 | F62: 0 | G62: 0 | H62: 0
B63: Visual Observer | C63: =SUM(C58:C61) -> 3.1 | D63: 20 | E63: 48.92833333 | F63: 2935.7 | G63: 978.5666667 | H63: 1.033333333
B64: Other | C64: 0 | D64: 450 | E64: 0 | F64: 0 | G64: 0 | H64: 0
B66: Personnel Total Cost | F66: =SUM(F58:F64) -> 68988.95 | G66: =SUM(G58:G64) -> 22996.31667 | H66: =SUM(H58:H64) -> 24.28333333
B68: Total Man Hours | E68: =SUM(E58:E64) -> 97.85666667
B69: Pilot in Command (PIC) Hours | E69: =SUM(E58:E62,E64) -> 48.92833333
B70: Pilot in Command (PIC) Weeks (40 hrs) | E70: =E69/40 -> 1.223208333
B71: Acres/Hour PIC | E71: =C45/E69 -> 51.09513915
B73: Economic Considerations
B75: Cost Per Flight
B76: Total UAS Cost of Application Per Flight | C76: =('Total Costs'!E23)+H66 -> 29.59634662 | D76: /flight
B77: Total Chemical Cost Per Flight | C77: =E22*E19 -> 18.47781719 | D77: /flight
B78: Total Cost (UAS & Chemical) Per Flight | C78: =SUM(C76:C77) -> 48.07416381 | D78: /flight
B80: Cost Per Acre
B81: Total UAS Cost of Application Per Acre | C81: =IF($G$36="* Partial Load",$C$76/$E$41,$C$76/$C$37) -> 33.63221207 | D81: /acre
B82: Total Chemical Cost Per Acre | C82: =E19*E18 -> 20.99751953 | D82: /acre
B83: Total Cost (UAS & Chemical) Per Acre | C83: =SUM(C81:C82) -> 54.6297316 | D83: /acre
B86: $/bu for Crop | C86: 10 | D86: /bu
B87: Breakeven Increase in Yield Bu/Acre Required | C87: =C83/C86 -> 5.46297316 | D87: bu
B89: =IF('Total Costs'!D8='Total Costs'!G17,"Pilot in Command (PIC) Cost","Pilot in Command (PIC) Income") -> Pilot in Command (PIC) Income | C89: =SUM(G58:G62,G64)*C47 -> 66053.25 | E89: =IF(C5="Enabled",F66,"") -> 
B90: Pilot in Command (PIC) ($/Flight) | C90: =C89/C48 -> 23.25 | D90: /flight
B92: Total Cost (UAS & Chemical) | C92: =C83*C45 -> 136574.329
B95: Desired Total UAS Cost of Application Per Acre | C95: 12 | D95: /acre
